Department,Entity,Date of Payment,Expense Type,Expense Area,Supplier,Transaction Number,Amount,Description,Supplier Post Code,Supplier Type
"Department for Business, Energy and Industrial Strategy","Department for Business, Energy and Industrial Strategy",30/10/2020,R & D Current Grants to Private Sector - NPISH,"Industrial Strategy, Science and Innovation - International Science and Innovation",ACADEMY OF MEDICAL SCIENCES,366453,152318.00,Academy of Medical Sciences - GCRF - Coherence & Impact-R & D Current Grants to Private Sector - NPISH,W1B 1QH,GRANT
"Department for Business, Energy and Industrial Strategy","Department for Business, Energy and Industrial Strategy",30/10/2020,R & D Administration of Grants and Awards,"Industrial Strategy, Science and Innovation - International Science and Innovation",ACADEMY OF MEDICAL SCIENCES,366452,47793.14,Academy of Medical Sciences - Global Challenges Research Fund-R & D Administration of Grants and Awards,W1B 1QH,GRANT
"Department for Business, Energy and Industrial Strategy","Department for Business, Energy and Industrial Strategy",05/10/2020,R & D Current Grants to Private Sector - NPISH,"Industrial Strategy, Science and Innovation - International Science and Innovation",ACADEMY OF MEDICAL SCIENCES,363462,1399284.00,Academy of Medical Sciences: 2018-2021 R&D uplift Skills-R & D Current Grants to Private Sector - NPISH,W1B 1QH,GRANT
"Department for Business, Energy and Industrial Strategy","Department for Business, Energy and Industrial Strategy",05/10/2020,R & D Current Grants to Private Sector - NPISH,"Industrial Strategy, Science and Innovation - International Science and Innovation",ACADEMY OF MEDICAL SCIENCES,363393,188243.00,Academy of Medical Sciences-R & D Current Grants to Private Sector - NPISH,W1B 1QH,GRANT
"Department for Business, Energy and Industrial Strategy","Department for Business, Energy and Industrial Strategy",01/10/2020,Grant-In-Aid to Arms Length Bodies,Market Frameworks - Labour Market,ACAS,362399,4500000.00,ACAS Non-Budget-Grant-In-Aid to Arms Length Bodies,NW1 3JJ,WGA ONLY
"Department for Business, Energy and Industrial Strategy","Department for Business, Energy and Industrial Strategy",09/10/2020,Central Telecommunications Services,Market Frameworks - Consumer and Competition Policy,TRADING STANDARDS INSTITUTE (TSI),363328,8270.52,ADR Directive-Central Telecommunications Services,SS15 6TH,VENDOR
"Department for Business, Energy and Industrial Strategy","Department for Business, Energy and Industrial Strategy",01/10/2020,Current Grants To Private Sector - NPISH,Market Frameworks - Consumer and Competition Policy,TRADING STANDARDS INSTITUTE (TSI),362984,25500.00,ADR Directive-Current Grants To Private Sector - NPISH,SS15 6TH,VENDOR
"Department for Business, Energy and Industrial Strategy","Department for Business, Energy and Industrial Strategy",01/10/2020,Grant-In-Aid to Arms Length Bodies,"Industrial Strategy, Science and Innovation - International Science and Innovation",UKRI - Arts and Humanities Research Council,362856,5000000.00,AHRC Financing-Grant-In-Aid to Arms Length Bodies,BS1 2AE,WGA ONLY
"Department for Business, Energy and Industrial Strategy","Department for Business, Energy and Industrial Strategy",07/10/2020,External Legal Advice and Service,Business Sectors - Advanced Manufacturing,Clifford Chance LLP,363777,28234.74,ALI: Aerospace Market Analysis and Private Sector Advice-External Legal Advice and Service,E14 5JJ,VENDOR
"Department for Business, Energy and Industrial Strategy","Department for Business, Energy and Industrial Strategy",07/10/2020,External Legal Advice and Service,Business Sectors - Advanced Manufacturing,Clifford Chance LLP,363779,11320.88,ALI: Aerospace Market Analysis and Private Sector Advice-External Legal Advice and Service,E14 5JJ,VENDOR
"Department for Business, Energy and Industrial Strategy","Department for Business, Energy and Industrial Strategy",15/10/2020,External Legal Advice and Service,Business Sectors - Advanced Manufacturing,Clifford Chance LLP,364676,72655.63,ALI: Aerospace Market Analysis and Private Sector Advice-External Legal Advice and Service,E14 5JJ,VENDOR
"Department for Business, Energy and Industrial Strategy","Department for Business, Energy and Industrial Strategy",01/10/2020,Publications,Business Sectors - Advanced Manufacturing,REED BUSINESS INFORMATION LTD,362982,4412.40,ALI: Aerospace Market Analysis and Private Sector Advice-Publications,CM7 4LN,VENDOR
"Department for Business, Energy and Industrial Strategy","Department for Business, Energy and Industrial Strategy",16/10/2020,Publications,Business Sectors - Advanced Manufacturing,COUNTERPOINT MARKET INTELLIGENCE LTD,364906,3000.00,ALI: Aerospace Market Analysis and Private Sector Advice-Publications,OX12 0EA,VENDOR
"Department for Business, Energy and Industrial Strategy","Department for Business, Energy and Industrial Strategy",16/10/2020,Utilisation of Provisions - Purchase of Goods & Services - Other,Energy and Security - Energy Development and Resilience,CLYDE & CO LLP,364921,42764.40,AMD: British Shipbuilders Provision-Utilisation of Provisions - Purchase of Goods & Services - Other,EX3A 7AR,VENDOR
"Department for Business, Energy and Industrial Strategy","Department for Business, Energy and Industrial Strategy",16/10/2020,Utilisation of Provisions - Purchase of Goods & Services - Other,Energy and Security - Energy Development and Resilience,Clyde & Co (Scotland) LLP,364923,-29518.49,AMD: British Shipbuilders Provision-Utilisation of Provisions - Purchase of Goods & Services - Other,EH1 3QR,VENDOR
"Department for Business, Energy and Industrial Strategy","Department for Business, Energy and Industrial Strategy",16/10/2020,Utilisation of Provisions - Purchase of Goods & Services - Other,Energy and Security - Energy Development and Resilience,Clyde & Co (Scotland) LLP,364923,879.00,AMD: British Shipbuilders Provision-Utilisation of Provisions - Purchase of Goods & Services - Other,EH1 3QR,VENDOR
"Department for Business, Energy and Industrial Strategy","Department for Business, Energy and Industrial Strategy",16/10/2020,Utilisation of Provisions - Purchase of Goods & Services - Other,Energy and Security - Energy Development and Resilience,Clyde & Co (Scotland) LLP,364923,58157.98,AMD: British Shipbuilders Provision-Utilisation of Provisions - Purchase of Goods & Services - Other,EH1 3QR,VENDOR
"Department for Business, Energy and Industrial Strategy","Department for Business, Energy and Industrial Strategy",21/10/2020,Utilisation of Provisions - Purchase of Goods & Services - Other,Energy and Security - Energy Development and Resilience,Robert Bennett,365322,160.90,AMD: British Shipbuilders Provision-Utilisation of Provisions - Purchase of Goods & Services - Other,OX28,VENDOR
"Department for Business, Energy and Industrial Strategy","Department for Business, Energy and Industrial Strategy",21/10/2020,Economic Consultancy & Research,Business Sectors - Advanced Manufacturing,TECHNOPOLIS LTD,365313,31850.00,AMS:Research-Economic Consultancy & Research,BN1 1EE,VENDOR
"Department for Business, Energy and Industrial Strategy","Department for Business, Energy and Industrial Strategy",08/10/2020,Technical Advice / Services & Support,Corporate Services - Finance & Portfolio,Alexander Mann Solutions Ltd,363591,6236.82,Assurance Reviews And PPM Capability-Technical Advice / Services & Support,EC2N 3AQ,VENDOR
"Department for Business, Energy and Industrial Strategy","Department for Business, Energy and Industrial Strategy",14/10/2020,Technical Advice / Services & Support,Corporate Services - Finance & Portfolio,Alexander Mann Solutions Ltd,364250,3598.16,Assurance Reviews And PPM Capability-Technical Advice / Services & Support,EC2N 3AQ,VENDOR
"Department for Business, Energy and Industrial Strategy","Department for Business, Energy and Industrial Strategy",20/10/2020,Technical Advice / Services & Support,Corporate Services - Finance & Portfolio,Alexander Mann Solutions Ltd,365062,2398.78,Assurance Reviews And PPM Capability-Technical Advice / Services & Support,EC2N 3AQ,VENDOR
"Department for Business, Energy and Industrial Strategy","Department for Business, Energy and Industrial Strategy",20/10/2020,Technical Advice / Services & Support,Corporate Services - Finance & Portfolio,Alexander Mann Solutions Ltd,365064,6267.18,Assurance Reviews And PPM Capability-Technical Advice / Services & Support,EC2N 3AQ,VENDOR
"Department for Business, Energy and Industrial Strategy","Department for Business, Energy and Industrial Strategy",29/10/2020,R & D Current Grants to Private Sector - NPISH,Business Sectors - Advanced Manufacturing,Zenzic-UK Ltd,366284,120365.00,Automotive : C-CAV Test Bed-R & D Current Grants to Private Sector - NPISH,CV4 7AL,VENDOR
"Department for Business, Energy and Industrial Strategy","Department for Business, Energy and Industrial Strategy",29/10/2020,R & D Current Grants to Private Sector - NPISH,Business Sectors - Advanced Manufacturing,BIRMINGHAM CITY COUNCIL,366181,29378.00,Automotive Supply Chain-R & D Current Grants to Private Sector - NPISH,B24 9HN,WGA ONLY
"Department for Business, Energy and Industrial Strategy","Department for Business, Energy and Industrial Strategy",29/10/2020,R & D Current Grants to Private Sector - NPISH,Business Sectors - Advanced Manufacturing,BIRMINGHAM CITY COUNCIL,366181,336480.00,Automotive Supply Chain-R & D Current Grants to Private Sector - NPISH,B24 9HN,WGA ONLY
"Department for Business, Energy and Industrial Strategy","Department for Business, Energy and Industrial Strategy",12/10/2020,R & D Current Grants to Private Sector - NPISH,Business Sectors - Advanced Manufacturing,ADVANCED PROPULSION CENTRE UK LTD,364161,150000.00,Automotive: Advanced Propulsion Centre-R & D Current Grants to Private Sector - NPISH,CV4 7AL,GRANT
"Department for Business, Energy and Industrial Strategy","Department for Business, Energy and Industrial Strategy",29/10/2020,R & D Current Grants to Private Sector - NPISH,Business Sectors - Advanced Manufacturing,Zenzic-UK Ltd,366283,37375.00,Automotive: CCAV The Meridian Hub-R & D Current Grants to Private Sector - NPISH,CV4 7AL,VENDOR
"Department for Business, Energy and Industrial Strategy","Department for Business, Energy and Industrial Strategy",08/10/2020,R & D Current Grants to Private Sector - NPISH,Business Sectors - Advanced Manufacturing,ADVANCED PROPULSION CENTRE UK LTD,363891,27271.00,Automotive:Advanced Propulsion Centre-R & D Current Grants to Private Sector - NPISH,CV4 7AL,GRANT
"Department for Business, Energy and Industrial Strategy","Department for Business, Energy and Industrial Strategy",09/10/2020,R & D Current Grants to Private Sector - NPISH,Business Sectors - Advanced Manufacturing,ADVANCED PROPULSION CENTRE UK LTD,364116,13175.00,Automotive:Advanced Propulsion Centre-R & D Current Grants to Private Sector - NPISH,CV4 7AL,GRANT
"Department for Business, Energy and Industrial Strategy","Department for Business, Energy and Industrial Strategy",09/10/2020,R & D Current Grants to Private Sector - NPISH,Business Sectors - Advanced Manufacturing,ADVANCED PROPULSION CENTRE UK LTD,364118,8985.00,Automotive:Advanced Propulsion Centre-R & D Current Grants to Private Sector - NPISH,CV4 7AL,GRANT
"Department for Business, Energy and Industrial Strategy","Department for Business, Energy and Industrial Strategy",12/10/2020,R & D Current Grants to Private Sector - NPISH,Business Sectors - Advanced Manufacturing,ADVANCED PROPULSION CENTRE UK LTD,364345,15836.00,Automotive:Advanced Propulsion Centre-R & D Current Grants to Private Sector - NPISH,CV4 7AL,GRANT
"Department for Business, Energy and Industrial Strategy","Department for Business, Energy and Industrial Strategy",12/10/2020,R & D Current Grants to Private Sector - NPISH,Business Sectors - Advanced Manufacturing,ADVANCED PROPULSION CENTRE UK LTD,364346,13073.00,Automotive:Advanced Propulsion Centre-R & D Current Grants to Private Sector - NPISH,CV4 7AL,GRANT
"Department for Business, Energy and Industrial Strategy","Department for Business, Energy and Industrial Strategy",21/10/2020,R & D Current Grants to Private Sector - NPISH,Business Sectors - Advanced Manufacturing,LOUGHBOROUGH UNIVERSITY,365297,61461.77,Automotive:Advanced Propulsion Centre-R & D Current Grants to Private Sector - NPISH,LE11 3TU,GRANT
"Department for Business, Energy and Industrial Strategy","Department for Business, Energy and Industrial Strategy",23/10/2020,R & D Current Grants to Private Sector - NPISH,Business Sectors - Advanced Manufacturing,ADVANCED PROPULSION CENTRE UK LTD,365656,59637.88,Automotive:Advanced Propulsion Centre-R & D Current Grants to Private Sector - NPISH,CV4 7AL,GRANT
"Department for Business, Energy and Industrial Strategy","Department for Business, Energy and Industrial Strategy",23/10/2020,R & D Current Grants to Private Sector - NPISH,Business Sectors - Advanced Manufacturing,ADVANCED PROPULSION CENTRE UK LTD,365657,12852.01,Automotive:Advanced Propulsion Centre-R & D Current Grants to Private Sector - NPISH,CV4 7AL,GRANT
"Department for Business, Energy and Industrial Strategy","Department for Business, Energy and Industrial Strategy",01/10/2020,Grant-In-Aid to Arms Length Bodies,"Industrial Strategy, Science and Innovation - International Science and Innovation",UKRI - Biotechnology and Biological Science Research Council,362857,25000000.00,BBSRC Financing-Grant-In-Aid to Arms Length Bodies,SN2 1FF,WGA ONLY
"Department for Business, Energy and Industrial Strategy","Department for Business, Energy and Industrial Strategy",05/10/2020,Research and Development Expenditure,Energy Transformation and Clean Growth - Clean Heat,Eunomia Research and Consulting Ltd,363396,1800.08,BEST team Programme costs-Research and Development Expenditure,BS1 4QS,VENDOR
"Department for Business, Energy and Industrial Strategy","Department for Business, Energy and Industrial Strategy",05/10/2020,Research and Development Expenditure,Energy Transformation and Clean Growth - Clean Heat,Eunomia Research and Consulting Ltd,363396,3189.92,BEST team Programme costs-Research and Development Expenditure,BS1 4QS,VENDOR
"Department for Business, Energy and Industrial Strategy","Department for Business, Energy and Industrial Strategy",12/10/2020,Research and Development Expenditure,Energy Transformation and Clean Growth - Clean Heat,MARKET & OPINION RESEARCH INTERNATIONAL LTD T/A IPSOS MORI,363925,-86490.00,BEST team Programme costs-Research and Development Expenditure,E1W 1YW,VENDOR
"Department for Business, Energy and Industrial Strategy","Department for Business, Energy and Industrial Strategy",12/10/2020,Research and Development Expenditure,Energy Transformation and Clean Growth - Clean Heat,MARKET & OPINION RESEARCH INTERNATIONAL LTD T/A IPSOS MORI,363925,95139.00,BEST team Programme costs-Research and Development Expenditure,E1W 1YW,VENDOR
"Department for Business, Energy and Industrial Strategy","Department for Business, Energy and Industrial Strategy",08/10/2020,IT Management and Change - Application Development,Market Frameworks - Regulation Executive,Waymark Tech Ltd,364091,82622.33,BRE: GovTech Challenge Fund-IT Management and Change - Application Development,OX9 3WT,VENDOR
"Department for Business, Energy and Industrial Strategy","Department for Business, Energy and Industrial Strategy",05/10/2020,R & D Current Grants to Private Sector - NPISH,"Industrial Strategy, Science and Innovation - International Science and Innovation",THE BRITISH ACADEMY,363388,718523.00,British Academy-R & D Current Grants to Private Sector - NPISH,SW1Y 5AH,VENDOR
"Department for Business, Energy and Industrial Strategy","Department for Business, Energy and Industrial Strategy",01/10/2020,Utilisation of Provisions - British Energy,Energy and Security - British Energy Historic Payments,Nuclear Decommissioning Authority,362308,2578217.66,British Energy Historic Liabilities Funding-Utilisation of Provisions - British Energy,CA24 3HW,VENDOR
"Department for Business, Energy and Industrial Strategy","Department for Business, Energy and Industrial Strategy",01/10/2020,Utilisation of Provisions - British Energy,Energy and Security - British Energy Historic Payments,Nuclear Decommissioning Authority,362309,9505116.23,British Energy Historic Liabilities Funding-Utilisation of Provisions - British Energy,CA24 3HW,VENDOR
"Department for Business, Energy and Industrial Strategy","Department for Business, Energy and Industrial Strategy",02/10/2020,Utilisation of Provisions - Purchase of Goods & Services - Other,Energy and Security - Energy Development and Resilience,CLYDE & CO LLP,363100,347883.20,BRITISH SHIPBUILDERS PROVISION-Utilisation of Provisions - Purchase of Goods & Services - Other,NE1 3AZ,VENDOR
"Department for Business, Energy and Industrial Strategy","Department for Business, Energy and Industrial Strategy",16/10/2020,Utilisation of Provisions - Purchase of Goods & Services - Other,Energy and Security - Energy Development and Resilience,CLYDE & CO LLP,364909,208912.01,BRITISH SHIPBUILDERS PROVISION-Utilisation of Provisions - Purchase of Goods & Services - Other,NE1 3AZ,VENDOR
"Department for Business, Energy and Industrial Strategy","Department for Business, Energy and Industrial Strategy",30/10/2020,Utilisation of Provisions - Purchase of Goods & Services - Other,Energy and Security - Energy Development and Resilience,CLYDE & CO LLP,366456,113249.92,BRITISH SHIPBUILDERS PROVISION-Utilisation of Provisions - Purchase of Goods & Services - Other,NE1 3AZ,VENDOR
"Department for Business, Energy and Industrial Strategy","Department for Business, Energy and Industrial Strategy",26/10/2020,Independent Experts,Market Frameworks - Business Frameworks,BDO LLP,365761,75109.75,Business Environment-Independent Experts,W1U 3LL,VENDOR
"Department for Business, Energy and Industrial Strategy","Department for Business, Energy and Industrial Strategy",21/10/2020,Business Management Advice,"Industrial Strategy, Science and Innovation - Business Growth",UMI Commercial Ltd,365467,185119.39,Business Support Helpline-Business Management Advice,SR7 7TT,VENDOR
"Department for Business, Energy and Industrial Strategy","Department for Business, Energy and Industrial Strategy",22/10/2020,Telecoms Equipment,"Industrial Strategy, Science and Innovation - Business Growth",LANGUAGE LINE LTD T/A LANGUAGE LINE SOLUTIONS,365536,-28.27,Business Support Helpline-Telecoms Equipment,E14 5NR,VENDOR
"Department for Business, Energy and Industrial Strategy","Department for Business, Energy and Industrial Strategy",22/10/2020,Telecoms Equipment,"Industrial Strategy, Science and Innovation - Business Growth",LANGUAGE LINE LTD T/A LANGUAGE LINE SOLUTIONS,365536,51.83,Business Support Helpline-Telecoms Equipment,E14 5NR,VENDOR
"Department for Business, Energy and Industrial Strategy","Department for Business, Energy and Industrial Strategy",30/10/2020,Research and Development Expenditure,Energy Transformation and Clean Growth - Energy Efficiency and Local,RICARDO UK LTD,365011,6035.00,CCA and EII Strategy-Research and Development Expenditure,BN43 5FG,VENDOR
"Department for Business, Energy and Industrial Strategy","Department for Business, Energy and Industrial Strategy",12/10/2020,Membership of Organisations,Energy and Security - Clean Power Strategy and Deployment,GLOBAL CARBON CAPTURE & STORAGE INSTITUTE,363019,38606.18,CCS Projects-Membership of Organisations,VIC 3000,VENDOR
"Department for Business, Energy and Industrial Strategy","Department for Business, Energy and Industrial Strategy",28/10/2020,Outsourced Programme Management,Market Frameworks - Business Frameworks,Companies House,366095,285531.00,CH: Late Filing Penalties-Outsourced Programme Management,CF14 3UZ,WGA ONLY
"Department for Business, Energy and Industrial Strategy","Department for Business, Energy and Industrial Strategy",23/10/2020,Outsourced Programme Management,Energy Transformation and Clean Growth - Energy Efficiency and Local,RICARDO-AEA LTD,365175,64098.94,CHP Quality Assurance Programme-Outsourced Programme Management,OX11 0QR,VENDOR
"Department for Business, Energy and Industrial Strategy","Department for Business, Energy and Industrial Strategy",19/10/2020,Current Grants To Private Sector - NPISH,Market Frameworks - Consumer and Competition Policy,CITIZENS ADVICE BUREAU,364704,795333.00,Citizens Advice Consumer Helpline-Current Grants To Private Sector - NPISH,N1 9LZ,GRANT
"Department for Business, Energy and Industrial Strategy","Department for Business, Energy and Industrial Strategy",19/10/2020,Current Grants To Private Sector - NPISH,Market Frameworks - Consumer and Competition Policy,CITIZENS ADVICE BUREAU,364704,1860334.00,Citizens Advice Core Grant-Current Grants To Private Sector - NPISH,N1 9LZ,GRANT
"Department for Business, Energy and Industrial Strategy","Department for Business, Energy and Industrial Strategy",19/10/2020,Current Grants To Private Sector - NPISH,Market Frameworks - Consumer and Competition Policy,CITIZENS ADVICE BUREAU,364704,2552322.00,Citizens Advice Core Grant-Current Grants To Private Sector - NPISH,N1 9LZ,GRANT
"Department for Business, Energy and Industrial Strategy","Department for Business, Energy and Industrial Strategy",26/10/2020,Current Grants To Private Sector - NPISH,Market Frameworks - Consumer and Competition Policy,SCOTTISH ASSOCIATION CITIZENS ADVICE BUREAUX,365527,105187.00,Citizens Advice Scotland - Core Grant-Current Grants To Private Sector - NPISH,EH7 4GB,VENDOR
"Department for Business, Energy and Industrial Strategy","Department for Business, Energy and Industrial Strategy",26/10/2020,Current Grants To Private Sector - NPISH,Market Frameworks - Consumer and Competition Policy,SCOTTISH ASSOCIATION CITIZENS ADVICE BUREAUX,365527,259961.00,Citizens Advice Scotland - Core Grant-Current Grants To Private Sector - NPISH,EH7 4GB,VENDOR
"Department for Business, Energy and Industrial Strategy","Department for Business, Energy and Industrial Strategy",22/10/2020,Grant-In-Aid to Arms Length Bodies,Energy and Security - Nuclear Directorate - HSQ,Civil Nuclear Police Authority (Civil Nuclear Constabulary),365437,117503.09,Civil Nuclear Police uthority Grant in Aid-Grant-In-Aid to Arms Length Bodies,CW7 9GR,WGA ONLY
"Department for Business, Energy and Industrial Strategy","Department for Business, Energy and Industrial Strategy",02/10/2020,Outsourced Programme Management,Energy Transformation and Clean Growth - Clean Heat,BUILDING RESEARCH ESTABLISHMENT LTD (BRE),362411,45113.32,Clean Heat SAP (Standard Assessment Procedure)-Outsourced Programme Management,WD25 9XX,VENDOR
"Department for Business, Energy and Industrial Strategy","Department for Business, Energy and Industrial Strategy",07/10/2020,Outsourced Programme Management,Energy Transformation and Clean Growth - Clean Heat,Etude Consulting Ltd,363684,11106.00,Clean Heat SAP (Standard Assessment Procedure)-Outsourced Programme Management,EC1Y 8PQ,VENDOR
"Department for Business, Energy and Industrial Strategy","Department for Business, Energy and Industrial Strategy",28/10/2020,Outsourced Programme Management,Energy Transformation and Clean Growth - Clean Heat,BUILDING RESEARCH ESTABLISHMENT LTD (BRE),365548,56445.90,Clean Heat SAP (Standard Assessment Procedure)-Outsourced Programme Management,WD25 9XX,VENDOR
"Department for Business, Energy and Industrial Strategy","Department for Business, Energy and Industrial Strategy",02/10/2020,R & D Economic Consultancy and Research,"Energy and Security - Energy Security, Networks and Markets",AURORA ENERGY RESEARCH LTD,363213,12500.00,Climate Change Economic Analysis-R & D Economic Consultancy and Research,OX1 1TP,VENDOR
"Department for Business, Energy and Industrial Strategy","Department for Business, Energy and Industrial Strategy",02/10/2020,R & D Economic Consultancy and Research,"Energy and Security - Energy Security, Networks and Markets",TNEI SERVICES LTD,363215,22008.00,Climate Change Economic Analysis-R & D Economic Consultancy and Research,M1 2PW,GRANT
"Department for Business, Energy and Industrial Strategy","Department for Business, Energy and Industrial Strategy",20/10/2020,R & D Economic Consultancy and Research,"Energy and Security - Energy Security, Networks and Markets",AURORA ENERGY RESEARCH LTD,364835,3221.25,Climate Change Economic Analysis-R & D Economic Consultancy and Research,OX1 1TP,VENDOR
"Department for Business, Energy and Industrial Strategy","Department for Business, Energy and Industrial Strategy",01/10/2020,Other Goods/Services,Energy Transformation and Clean Growth - Science and Innovation,UEA Consulting Ltd,362826,125000.00,Climate Change Science-Other Goods/Services,NR4 7TJ,VENDOR
"Department for Business, Energy and Industrial Strategy","Department for Business, Energy and Industrial Strategy",05/10/2020,R & D Contractors,Energy Transformation and Clean Growth - Science and Innovation,Alexander Mann Solutions Ltd,363292,6628.97,Climate Change Science-R & D Contractors,EC2N 3AQ,VENDOR
"Department for Business, Energy and Industrial Strategy","Department for Business, Energy and Industrial Strategy",16/10/2020,R & D Contractors,Energy Transformation and Clean Growth - Science and Innovation,Alexander Mann Solutions Ltd,364244,8599.57,Climate Change Science-R & D Contractors,EC2N 3AQ,VENDOR
"Department for Business, Energy and Industrial Strategy","Department for Business, Energy and Industrial Strategy",26/10/2020,R & D Contractors,Energy Transformation and Clean Growth - Science and Innovation,Alexander Mann Solutions Ltd,365793,6790.64,Climate Change Science-R & D Contractors,EC2N 3AQ,VENDOR
"Department for Business, Energy and Industrial Strategy","Department for Business, Energy and Industrial Strategy",05/10/2020,R & D Outsourced Other,Energy Transformation and Clean Growth - Science and Innovation,MET OFFICE,363429,83333.33,Climate Change Science-R & D Outsourced Other,EX1 3PB,WGA ONLY
"Department for Business, Energy and Industrial Strategy","Department for Business, Energy and Industrial Strategy",16/10/2020,R & D Outsourced Other,Energy Transformation and Clean Growth - Science and Innovation,FORESTRY COMMISSION,363904,15500.00,Climate Change Science-R & D Outsourced Other,BS16 1EJ,WGA ONLY
"Department for Business, Energy and Industrial Strategy","Department for Business, Energy and Industrial Strategy",08/10/2020,R & D Outsourced Other,Energy Transformation and Clean Growth - Science and Innovation,LSE ENTERPRISE LTD,363924,24747.00,Climate Change Science-R & D Outsourced Other,WC2A 2AE,VENDOR
"Department for Business, Energy and Industrial Strategy","Department for Business, Energy and Industrial Strategy",21/10/2020,Utilisation of Provisions - Purchase of Goods & Services - Other,Energy and Security - Energy Development and Resilience,Iron Mountain (UK) Plc,365380,168560.59,Coal Health Administration Costs Including Legal Defence And Records Management-Utilisation of Provisions - Purchase of Goods & Services - Other,EH54 7DF,VENDOR
"Department for Business, Energy and Industrial Strategy","Department for Business, Energy and Industrial Strategy",21/10/2020,Utilisation of Provisions - Purchase of Goods & Services - Other,Energy and Security - Energy Development and Resilience,Iron Mountain (UK) Plc,365381,1131.22,Coal Health Administration Costs Including Legal Defence And Records Management-Utilisation of Provisions - Purchase of Goods & Services - Other,EH54 7DF,VENDOR
"Department for Business, Energy and Industrial Strategy","Department for Business, Energy and Industrial Strategy",26/10/2020,Utilisation of Provisions - Purchase of Goods & Services - Other,Energy and Security - Energy Development and Resilience,CMS CAMERON MCKENNA NABARRO OLSWANG LLP,365743,5236.20,Coal Health Administration Costs Including Legal Defence And Records Management-Utilisation of Provisions - Purchase of Goods & Services - Other,EC4N 6AF,VENDOR
"Department for Business, Energy and Industrial Strategy","Department for Business, Energy and Industrial Strategy",26/10/2020,Utilisation of Provisions - Purchase of Goods & Services - Other,Energy and Security - Energy Development and Resilience,CMS CAMERON MCKENNA NABARRO OLSWANG LLP,365743,381059.90,Coal Health Administration Costs Including Legal Defence And Records Management-Utilisation of Provisions - Purchase of Goods & Services - Other,EC4N 6AF,VENDOR
"Department for Business, Energy and Industrial Strategy","Department for Business, Energy and Industrial Strategy",01/10/2020,Economic Consultancy & Research,"Industrial Strategy, Science and Innovation - Science and Research",Careers Research and Advisory Centre (CRAC) Ltd T/A Vitae,362977,9995.00,Collaboration: Other Economic Research-Economic Consultancy & Research,CB5 8LA,VENDOR
"Department for Business, Energy and Industrial Strategy","Department for Business, Energy and Industrial Strategy",06/10/2020,Current Grants To Private Sector - NPISH,"Industrial Strategy, Science and Innovation - International Science and Innovation",Office for Nuclear Regulation,363632,342.84,Collaboration: Unallocated-Current Grants To Private Sector - NPISH,L20 7HS,VENDOR
"Department for Business, Energy and Industrial Strategy","Department for Business, Energy and Industrial Strategy",01/10/2020,Hire of Interim Managers,"Industrial Strategy, Science and Innovation - International Science and Innovation",Alexander Mann Solutions Ltd,362674,3941.94,Collaboration: Unallocated-Hire of Interim Managers,EC2N 3AQ,VENDOR
"Department for Business, Energy and Industrial Strategy","Department for Business, Energy and Industrial Strategy",07/10/2020,Hire of Interim Managers,"Industrial Strategy, Science and Innovation - International Science and Innovation",Alexander Mann Solutions Ltd,363437,3941.94,Collaboration: Unallocated-Hire of Interim Managers,EC2N 3AQ,VENDOR
"Department for Business, Energy and Industrial Strategy","Department for Business, Energy and Industrial Strategy",13/10/2020,Hire of Interim Managers,"Industrial Strategy, Science and Innovation - International Science and Innovation",Alexander Mann Solutions Ltd,364323,3941.94,Collaboration: Unallocated-Hire of Interim Managers,EC2N 3AQ,VENDOR
"Department for Business, Energy and Industrial Strategy","Department for Business, Energy and Industrial Strategy",22/10/2020,Hire of Interim Managers,"Industrial Strategy, Science and Innovation - International Science and Innovation",Alexander Mann Solutions Ltd,365070,3941.94,Collaboration: Unallocated-Hire of Interim Managers,EC2N 3AQ,VENDOR
"Department for Business, Energy and Industrial Strategy","Department for Business, Energy and Industrial Strategy",28/10/2020,Hire of Interim Managers,"Industrial Strategy, Science and Innovation - International Science and Innovation",Alexander Mann Solutions Ltd,365915,3941.94,Collaboration: Unallocated-Hire of Interim Managers,EC2N 3AQ,VENDOR
"Department for Business, Energy and Industrial Strategy","Department for Business, Energy and Industrial Strategy",20/10/2020,Learning and Dev - CS Skills,"Trade, Europe and Analysis - Economic Partnerships Directorate",LANGUAGE SERVICES DIRECT LTD,365185,120.00,College For Europe-Learning and Dev - CS Skills,SE1 1HJ,VENDOR
"Department for Business, Energy and Industrial Strategy","Department for Business, Energy and Industrial Strategy",20/10/2020,Learning and Dev - CS Skills,"Trade, Europe and Analysis - Economic Partnerships Directorate",LANGUAGE SERVICES DIRECT LTD,365185,3510.00,College For Europe-Learning and Dev - CS Skills,SE1 1HJ,VENDOR
"Department for Business, Energy and Industrial Strategy","Department for Business, Energy and Industrial Strategy",09/10/2020,Grant-In-Aid to Arms Length Bodies,Energy Transformation and Clean Growth - Clean Growth,THE COMMITTEE ON CLIMATE CHANGE,363947,279279.00,Committee on Climate Change Grant in Aid Payments-Grant-In-Aid to Arms Length Bodies,SW1W 8NR,GRANT
"Department for Business, Energy and Industrial Strategy","Department for Business, Energy and Industrial Strategy",23/10/2020,Grant-In-Aid to Arms Length Bodies,Market Frameworks - Consumer and Competition Policy,COMPETITION SERVICE,364840,1141000.00,Competition Services NB-Grant-In-Aid to Arms Length Bodies,WC2A 2JT,WGA ONLY
"Department for Business, Energy and Industrial Strategy","Department for Business, Energy and Industrial Strategy",28/10/2020,Utilisation of Provisions - Purchase of Goods & Services - Other,Energy and Security - Energy Development and Resilience,Capita Business Services LTD,366164,108463.09,"Concessionary Fuel Scheme Costs (Includes Supply, Distribution and Contract Mana-Utilisation of Provisions - Purchase of Goods & Services - Other",DL1 9HN,VENDOR
"Department for Business, Energy and Industrial Strategy","Department for Business, Energy and Industrial Strategy",30/10/2020,Utilisation of Provisions - Purchase of Goods & Services - Other,Energy and Security - Energy Development and Resilience,CPL DISTRIBUTION LTD,366451,15000.00,"Concessionary Fuel Scheme Costs (Includes Supply, Distribution and Contract Mana-Utilisation of Provisions - Purchase of Goods & Services - Other",S21 1TZ,VENDOR
"Department for Business, Energy and Industrial Strategy","Department for Business, Energy and Industrial Strategy",27/10/2020,Economic Consultancy & Research,"Trade, Europe and Analysis - Analysis Directorate",ENERDATA,365396,63912.56,Construction: Statistics and Other Sponsorship Activities-Economic Consultancy & Research,38000,VENDOR
"Department for Business, Energy and Industrial Strategy","Department for Business, Energy and Industrial Strategy",08/10/2020,R & D Economic Consultancy and Research,"Trade, Europe and Analysis - Analysis Directorate",AUTICON LTD,363845,4950.00,Construction: Statistics and Other Sponsorship Activities-R & D Economic Consultancy and Research,EC2A 2EX,VENDOR
"Department for Business, Energy and Industrial Strategy","Department for Business, Energy and Industrial Strategy",22/10/2020,UK Subscriptions,"Trade, Europe and Analysis - Analysis Directorate",ARGUS MEDIA LTD,364175,-34699.51,Construction: Statistics and Other Sponsorship Activities-UK Subscriptions,WC1X 8NL,VENDOR
"Department for Business, Energy and Industrial Strategy","Department for Business, Energy and Industrial Strategy",22/10/2020,UK Subscriptions,"Trade, Europe and Analysis - Analysis Directorate",ARGUS MEDIA LTD,364175,46946.40,Construction: Statistics and Other Sponsorship Activities-UK Subscriptions,WC1X 8NL,VENDOR
"Department for Business, Energy and Industrial Strategy","Department for Business, Energy and Industrial Strategy",13/10/2020,Current Grants To Private Sector - NPISH,Market Frameworks - Consumer and Competition Policy,THE CONSUMER COUNCIL FOR NORTHERN IRELAND (THE CONSUMER COUNCIL),364177,36142.00,"Consumer Advocacy for Energy, Post and cross-sector including EHU-Current Grants To Private Sector - NPISH",BT4 1NY,GRANT
"Department for Business, Energy and Industrial Strategy","Department for Business, Energy and Industrial Strategy",19/10/2020,Current Grants To Private Sector - NPISH,Market Frameworks - Consumer and Competition Policy,CITIZENS ADVICE BUREAU,364704,606602.00,"Consumer Advocacy for Energy, Post and cross-sector including EHU-Current Grants To Private Sector - NPISH",N1 9LZ,GRANT
"Department for Business, Energy and Industrial Strategy","Department for Business, Energy and Industrial Strategy",26/10/2020,Current Grants To Private Sector - NPISH,Market Frameworks - Consumer and Competition Policy,SCOTTISH ASSOCIATION CITIZENS ADVICE BUREAUX,365527,155258.00,"Consumer Advocacy for Energy, Post and cross-sector including EHU-Current Grants To Private Sector - NPISH",EH7 4GB,VENDOR
"Department for Business, Energy and Industrial Strategy","Department for Business, Energy and Industrial Strategy",26/10/2020,Current Grants To Private Sector - NPISH,Market Frameworks - Consumer and Competition Policy,CITIZENS ADVICE BUREAU,365854,77750.31,"Consumer Advocacy for Energy, Post and cross-sector including EHU-Current Grants To Private Sector - NPISH",B5 4UA,GRANT
"Department for Business, Energy and Industrial Strategy","Department for Business, Energy and Industrial Strategy",26/10/2020,Current Grants To Private Sector - NPISH,Market Frameworks - Consumer and Competition Policy,CITIZENS ADVICE BUREAU,365854,125302.92,"Consumer Advocacy for Energy, Post and cross-sector including EHU-Current Grants To Private Sector - NPISH",B5 4UA,GRANT
"Department for Business, Energy and Industrial Strategy","Department for Business, Energy and Industrial Strategy",14/10/2020,Current Grants To Private Sector - NPISH,Market Frameworks - Consumer and Competition Policy,CONVENTION OF SCOTTISH LOCAL AUTHORITES (COSLA),364500,277407.00,Convesntion of Scottish Local Authorities-Current Grants To Private Sector - NPISH,EH12 5BH,VENDOR
"Department for Business, Energy and Industrial Strategy","Department for Business, Energy and Industrial Strategy",26/10/2020,Payments to Government Legal Department,Vaccines Taskforce - Vaccines Taskforce,Government Legal Department,365824,85948.00,Core BEIS - Covid Costs - Admin-Payments to Government Legal Department,WC2B 4TS,VENDOR
"Department for Business, Energy and Industrial Strategy","Department for Business, Energy and Industrial Strategy",19/10/2020,Consultancy Expenditure,Vaccines Taskforce - Vaccines Taskforce,BIOINDUSTRY ASSOCIATION,364613,307957.13,Core BEIS - Vaccine Taskforce-Consultancy Expenditure,SW1E 6QT,VENDOR
"Department for Business, Energy and Industrial Strategy","Department for Business, Energy and Industrial Strategy",06/10/2020,Marketing and Media,Corporate Services - Communications,KANTAR UK LTD,362696,48320.00,Corporate Presentation-Marketing and Media,W5 1UA,VENDOR
"Department for Business, Energy and Industrial Strategy","Department for Business, Energy and Industrial Strategy",05/10/2020,Marketing and Media,Corporate Services - Communications,KANTAR UK LTD,363400,27649.00,Corporate Presentation-Marketing and Media,W5 1UA,VENDOR
"Department for Business, Energy and Industrial Strategy","Department for Business, Energy and Industrial Strategy",28/10/2020,Current Grants To Private Sector - NPISH,Market Frameworks - Consumer and Competition Policy,TRADING STANDARDS INSTITUTE (TSI),365372,949268.85,CTSI: Trading Standards Institute-Current Grants To Private Sector - NPISH,SS15 6TH,VENDOR
"Department for Business, Energy and Industrial Strategy","Department for Business, Energy and Industrial Strategy",21/10/2020,EXP - Miscellaneous Expenditure - iExpenses,"Industrial Strategy, Science and Innovation - Business Growth","Personal Expense, Name Withheld",365486,141.96,DB: Queens Award-EXP - Miscellaneous Expenditure - iExpenses,,EMPLOYEE
"Department for Business, Energy and Industrial Strategy","Department for Business, Energy and Industrial Strategy",22/10/2020,EXP - Miscellaneous Expenditure - iExpenses,"Industrial Strategy, Science and Innovation - Business Growth","Personal Expense, Name Withheld",365617,178.90,DB: Queens Award-EXP - Miscellaneous Expenditure - iExpenses,,EMPLOYEE
"Department for Business, Energy and Industrial Strategy","Department for Business, Energy and Industrial Strategy",23/10/2020,EXP - Miscellaneous Expenditure - iExpenses,"Industrial Strategy, Science and Innovation - Business Growth","Personal Expense, Name Withheld",365715,71.78,DB: Queens Award-EXP - Miscellaneous Expenditure - iExpenses,,EMPLOYEE
"Department for Business, Energy and Industrial Strategy","Department for Business, Energy and Industrial Strategy",26/10/2020,Other Goods/Services,"Industrial Strategy, Science and Innovation - Business Growth",DARTINGTON CRYSTAL TORRINGTON LTD,365811,25030.80,DB: Queens Award-Other Goods/Services,EX38 7AN,VENDOR
"Department for Business, Energy and Industrial Strategy","Department for Business, Energy and Industrial Strategy",02/10/2020,Clarity Travel Management,"Corporate Services - Digital, Data & Technology",Corporate Travel Management (North) Ltd,363226,46.68,Default-Clarity Travel Management,BD1 5HQ,VENDOR
"Department for Business, Energy and Industrial Strategy","Department for Business, Energy and Industrial Strategy",02/10/2020,Clarity Travel Management,"Corporate Services - Digital, Data & Technology",Corporate Travel Management (North) Ltd,363226,15520.71,Default-Clarity Travel Management,BD1 5HQ,VENDOR
"Department for Business, Energy and Industrial Strategy","Department for Business, Energy and Industrial Strategy",14/10/2020,GPC New Procedures,Corporate Payments,BARCLAYS BANK PLC,364598,67875.20,Default-GPC New Procedures,TS17 6YT,VENDOR
"Department for Business, Energy and Industrial Strategy","Department for Business, Energy and Industrial Strategy",16/10/2020,Mileage Allowance UK,"Corporate Services - Policy, Delivery and Private Office","Personal Expense, Name Withheld",364871,113.04,Default-Mileage Allowance UK,,EMPLOYEE
"Department for Business, Energy and Industrial Strategy","Department for Business, Energy and Industrial Strategy",22/10/2020,Mileage Allowance UK,"Corporate Services - Policy, Delivery and Private Office","Personal Expense, Name Withheld",365592,77.98,Default-Mileage Allowance UK,,EMPLOYEE
"Department for Business, Energy and Industrial Strategy","Department for Business, Energy and Industrial Strategy",16/10/2020,Other Travel,"Corporate Services - Policy, Delivery and Private Office","Personal Expense, Name Withheld",364877,45.00,Default-Other Travel,,
"Department for Business, Energy and Industrial Strategy","Department for Business, Energy and Industrial Strategy",14/10/2020,Payment to Barclaycard for ERAC (Enterprise-Rent-a-Car),Corporate Payments,BARCLAYS BANK PLC,364595,248.35,Default-Payment to Barclaycard for ERAC (Enterprise-Rent-a-Car),TS17 6YT,VENDOR
"Department for Business, Energy and Industrial Strategy","Department for Business, Energy and Industrial Strategy",29/10/2020,Payment-Recovery of Overpayment re Exits,Corporate Services - Finance & Portfolio,Cabinet Office,366489,647.55,Default-Payment-Recovery of Overpayment re Exits,RG24 9NW,WGA ONLY
"Department for Business, Energy and Industrial Strategy","Department for Business, Energy and Industrial Strategy",29/10/2020,Payment-Recovery of Overpayment re Exits,Corporate Services - Finance & Portfolio,Cabinet Office,366491,2242.74,Default-Payment-Recovery of Overpayment re Exits,RG24 9NW,WGA ONLY
"Department for Business, Energy and Industrial Strategy","Department for Business, Energy and Industrial Strategy",29/10/2020,Payment-Recovery of Overpayment re Exits,Corporate Services - Finance & Portfolio,Cabinet Office,366494,-8513.05,Default-Payment-Recovery of Overpayment re Exits,RG24 9NW,WGA ONLY
"Department for Business, Energy and Industrial Strategy","Department for Business, Energy and Industrial Strategy",29/10/2020,Payment-Recovery of Overpayment re Exits,Corporate Services - Finance & Portfolio,Cabinet Office,366494,2545.62,Default-Payment-Recovery of Overpayment re Exits,RG24 9NW,WGA ONLY
"Department for Business, Energy and Industrial Strategy","Department for Business, Energy and Industrial Strategy",29/10/2020,Payment-Recovery of Overpayment re Exits,Corporate Services - Finance & Portfolio,Cabinet Office,366494,17026.10,Default-Payment-Recovery of Overpayment re Exits,RG24 9NW,WGA ONLY
"Department for Business, Energy and Industrial Strategy","Department for Business, Energy and Industrial Strategy",29/10/2020,Payment-Recovery of Overpayment re Exits,Corporate Services - Finance & Portfolio,Cabinet Office,366494,24670.14,Default-Payment-Recovery of Overpayment re Exits,RG24 9NW,WGA ONLY
"Department for Business, Energy and Industrial Strategy","Department for Business, Energy and Industrial Strategy",01/10/2020,Payroll OGD Recharge,Corporate Payments,LEGAL AND GENERAL ASSURANCE SOCIETY LTD,363032,11476.99,Default-Payroll OGD Recharge,CF24 0EB,VENDOR
"Department for Business, Energy and Industrial Strategy","Department for Business, Energy and Industrial Strategy",01/10/2020,Payroll OGD Recharge,Corporate Payments,LEGAL AND GENERAL ASSURANCE SOCIETY LTD,363035,95343.38,Default-Payroll OGD Recharge,CF24 0EB,VENDOR
"Department for Business, Energy and Industrial Strategy","Department for Business, Energy and Industrial Strategy",23/10/2020,Rail Travel UK,"Industrial Strategy, Science and Innovation - International Science and Innovation","Personal Expense, Name Withheld",365669,79.95,Default-Rail Travel UK,,EMPLOYEE
"Department for Business, Energy and Industrial Strategy","Department for Business, Energy and Industrial Strategy",08/10/2020,Recoveries Account - Other payables,Corporate Payments,Spirit Energy Nederland B.V.,364082,1169.90,Default-Recoveries Account - Other payables,SO21 1FP,VENDOR
"Department for Business, Energy and Industrial Strategy","Department for Business, Energy and Industrial Strategy",02/10/2020,Stationery,"Trade, Europe and Analysis - Trade and Investment Negotiations Services","Personal Expense, Name Withheld",363178,259.98,Default-Stationery,,EMPLOYEE
"Department for Business, Energy and Industrial Strategy","Department for Business, Energy and Industrial Strategy",16/10/2020,Stationery,"Trade, Europe and Analysis - Trade and Europe Portfolio Directorate","Personal Expense, Name Withheld",364875,88.95,Default-Stationery,,EMPLOYEE
"Department for Business, Energy and Industrial Strategy","Department for Business, Energy and Industrial Strategy",20/10/2020,Stationery,Energy Transformation and Clean Growth - International Energy and Climate Finance,"Personal Expense, Name Withheld",365225,106.80,Default-Stationery,,EMPLOYEE
"Department for Business, Energy and Industrial Strategy","Department for Business, Energy and Industrial Strategy",21/10/2020,Stationery,Energy and Security - Nuclear Directorate - SS,"Personal Expense, Name Withheld",365289,26.00,Default-Stationery,,
"Department for Business, Energy and Industrial Strategy","Department for Business, Energy and Industrial Strategy",21/10/2020,Stationery,Energy and Security - Nuclear Directorate - SS,"Personal Expense, Name Withheld",365290,26.00,Default-Stationery,,
"Department for Business, Energy and Industrial Strategy","Department for Business, Energy and Industrial Strategy",21/10/2020,Stationery,Energy and Security - Nuclear Directorate - SS,"Personal Expense, Name Withheld",365292,26.00,Default-Stationery,,
"Department for Business, Energy and Industrial Strategy","Department for Business, Energy and Industrial Strategy",21/10/2020,Stationery,Energy Transformation and Clean Growth - Energy Efficiency and Local,"Personal Expense, Name Withheld",365309,26.00,Default-Stationery,,EMPLOYEE
"Department for Business, Energy and Industrial Strategy","Department for Business, Energy and Industrial Strategy",21/10/2020,Stationery,"Trade, Europe and Analysis - Analysis Directorate","Personal Expense, Name Withheld",365344,26.00,Default-Stationery,,EMPLOYEE
"Department for Business, Energy and Industrial Strategy","Department for Business, Energy and Industrial Strategy",21/10/2020,Stationery,Corporate Services - Commercial & Operations,"Personal Expense, Name Withheld",365345,26.00,Default-Stationery,,EMPLOYEE
"Department for Business, Energy and Industrial Strategy","Department for Business, Energy and Industrial Strategy",21/10/2020,Stationery,Corporate Services - Commercial & Operations,"Personal Expense, Name Withheld",365346,26.00,Default-Stationery,,EMPLOYEE
"Department for Business, Energy and Industrial Strategy","Department for Business, Energy and Industrial Strategy",21/10/2020,Stationery,Corporate Services - Commercial & Operations,"Personal Expense, Name Withheld",365347,26.00,Default-Stationery,,EMPLOYEE
"Department for Business, Energy and Industrial Strategy","Department for Business, Energy and Industrial Strategy",21/10/2020,Stationery,Corporate Services - Commercial & Operations,"Personal Expense, Name Withheld",365348,26.00,Default-Stationery,,EMPLOYEE
"Department for Business, Energy and Industrial Strategy","Department for Business, Energy and Industrial Strategy",21/10/2020,Stationery,Corporate Services - Commercial & Operations,"Personal Expense, Name Withheld",365350,26.00,Default-Stationery,,EMPLOYEE
"Department for Business, Energy and Industrial Strategy","Department for Business, Energy and Industrial Strategy",21/10/2020,Stationery,Corporate Services - Commercial & Operations,"Personal Expense, Name Withheld",365351,26.00,Default-Stationery,,EMPLOYEE
"Department for Business, Energy and Industrial Strategy","Department for Business, Energy and Industrial Strategy",21/10/2020,Stationery,Energy Transformation and Clean Growth - International Climate Change,"Personal Expense, Name Withheld",365394,244.01,Default-Stationery,,EMPLOYEE
"Department for Business, Energy and Industrial Strategy","Department for Business, Energy and Industrial Strategy",23/10/2020,Stationery,"Industrial Strategy, Science and Innovation - Government Office for Science","Personal Expense, Name Withheld",365673,318.49,Default-Stationery,,EMPLOYEE
"Department for Business, Energy and Industrial Strategy","Department for Business, Energy and Industrial Strategy",27/10/2020,Stationery,Energy Transformation and Clean Growth - Industrial Energy,"Personal Expense, Name Withheld",365943,144.46,Default-Stationery,,EMPLOYEE
"Department for Business, Energy and Industrial Strategy","Department for Business, Energy and Industrial Strategy",27/10/2020,Stationery,Energy Transformation and Clean Growth - Industrial Energy,"Personal Expense, Name Withheld",365948,234.85,Default-Stationery,,EMPLOYEE
"Department for Business, Energy and Industrial Strategy","Department for Business, Energy and Industrial Strategy",27/10/2020,Stationery,Energy Transformation and Clean Growth - Science and Innovation,"Personal Expense, Name Withheld",365950,328.97,Default-Stationery,,EMPLOYEE
"Department for Business, Energy and Industrial Strategy","Department for Business, Energy and Industrial Strategy",29/10/2020,Stationery,Corporate Services - Finance & Portfolio,"Personal Expense, Name Withheld",366224,241.10,Default-Stationery,,EMPLOYEE
"Department for Business, Energy and Industrial Strategy","Department for Business, Energy and Industrial Strategy",30/10/2020,Stationery,"Trade, Europe and Analysis - Analysis Directorate","Personal Expense, Name Withheld",366437,101.90,Default-Stationery,,EMPLOYEE
"Department for Business, Energy and Industrial Strategy","Department for Business, Energy and Industrial Strategy",07/10/2020,Subsistence UK,"Corporate Services - Policy, Delivery and Private Office","Personal Expense, Name Withheld",363773,12.95,Default-Subsistence UK,,
"Department for Business, Energy and Industrial Strategy","Department for Business, Energy and Industrial Strategy",21/10/2020,Subsistence UK,Market Frameworks - Office for Product Safety and Standards,"Personal Expense, Name Withheld",365395,19.95,Default-Subsistence UK,,EMPLOYEE
"Department for Business, Energy and Industrial Strategy","Department for Business, Energy and Industrial Strategy",23/10/2020,Subsistence UK,"Corporate Services - Policy, Delivery and Private Office","Personal Expense, Name Withheld",365672,15.52,Default-Subsistence UK,,
"Department for Business, Energy and Industrial Strategy","Department for Business, Energy and Industrial Strategy",07/10/2020,Taxi Services UK,"Corporate Services - Policy, Delivery and Private Office","Personal Expense, Name Withheld",363773,14.00,Default-Taxi Services UK,,
"Department for Business, Energy and Industrial Strategy","Department for Business, Energy and Industrial Strategy",23/10/2020,Taxi Services UK,"Corporate Services - Policy, Delivery and Private Office","Personal Expense, Name Withheld",365672,8.00,Default-Taxi Services UK,,
"Department for Business, Energy and Industrial Strategy","Department for Business, Energy and Industrial Strategy",12/10/2020,Current Grants To Private Sector - NPISH,Business Sectors - Advanced Manufacturing,ADS GROUP LTD,364219,695638.08,Defence Solution Centre-Current Grants To Private Sector - NPISH,GU14 6FD,VENDOR
"Department for Business, Energy and Industrial Strategy","Department for Business, Energy and Industrial Strategy",21/10/2020,Capital Grants to Private Sector - Companies,Energy Transformation and Clean Growth - Science and Innovation,ENERGY SYSTEMS CATAPULT LTD,365326,195753.22,Delivery of DECC Energy Innovation-Capital Grants to Private Sector - Companies,B4 6BS,VENDOR
"Department for Business, Energy and Industrial Strategy","Department for Business, Energy and Industrial Strategy",28/10/2020,R & D Outsourced Other,Energy Transformation and Clean Growth - Science and Innovation,UKRI - Natural Environment Research Council,363486,549969.00,Delivery of DECC Energy Innovation-R & D Outsourced Other,NP10 8QQ,WGA ONLY
"Department for Business, Energy and Industrial Strategy","Department for Business, Energy and Industrial Strategy",21/10/2020,Current Grants To Private Sector - NPISH,"Industrial Strategy, Science and Innovation - International Science and Innovation",DESIGN COUNCIL,365369,135440.00,Design Council-Current Grants To Private Sector - NPISH,EC1V 4AB,WGA ONLY
"Department for Business, Energy and Industrial Strategy","Department for Business, Energy and Industrial Strategy",01/10/2020,Clearing Account   - Cost - Computer Equipment,"Corporate Services - Digital, Data & Technology",Insight Direct UK Limited,363018,4800.01,Digital Infrastructure and Maintenanc-Clearing Account   - Cost - Computer Equipment,UB8 1PH,VENDOR
"Department for Business, Energy and Industrial Strategy","Department for Business, Energy and Industrial Strategy",01/10/2020,Clearing Account   - Cost - Computer Equipment,"Corporate Services - Digital, Data & Technology",Insight Direct UK Limited,363026,9873.60,Digital Infrastructure and Maintenanc-Clearing Account   - Cost - Computer Equipment,UB8 1PH,VENDOR
"Department for Business, Energy and Industrial Strategy","Department for Business, Energy and Industrial Strategy",30/10/2020,Clearing Account   - Cost - Computer Equipment,"Corporate Services - Digital, Data & Technology",Insight Direct UK Limited,363201,394944.00,Digital Infrastructure and Maintenanc-Clearing Account   - Cost - Computer Equipment,UB8 1PH,VENDOR
"Department for Business, Energy and Industrial Strategy","Department for Business, Energy and Industrial Strategy",08/10/2020,Clearing Account   - Cost - Computer Equipment,"Corporate Services - Digital, Data & Technology",Bechtle Direct Ltd,363550,121626.91,Digital Infrastructure and Maintenanc-Clearing Account   - Cost - Computer Equipment,SN14 0GF,VENDOR
"Department for Business, Energy and Industrial Strategy","Department for Business, Energy and Industrial Strategy",30/10/2020,Clearing Account   - Cost - Computer Equipment,"Corporate Services - Digital, Data & Technology",Insight Direct UK Limited,363778,411427.20,Digital Infrastructure and Maintenanc-Clearing Account   - Cost - Computer Equipment,UB8 1PH,VENDOR
"Department for Business, Energy and Industrial Strategy","Department for Business, Energy and Industrial Strategy",30/10/2020,Clearing Account   - Cost - Computer Equipment,"Corporate Services - Digital, Data & Technology",Insight Direct UK Limited,364109,51428.40,Digital Infrastructure and Maintenanc-Clearing Account   - Cost - Computer Equipment,UB8 1PH,VENDOR
"Department for Business, Energy and Industrial Strategy","Department for Business, Energy and Industrial Strategy",30/10/2020,Clearing Account   - Cost - Computer Equipment,"Corporate Services - Digital, Data & Technology",Insight Direct UK Limited,364415,5682.00,Digital Infrastructure and Maintenanc-Clearing Account   - Cost - Computer Equipment,UB8 1PH,VENDOR
"Department for Business, Energy and Industrial Strategy","Department for Business, Energy and Industrial Strategy",30/10/2020,Clearing Account   - Cost - Computer Equipment,"Corporate Services - Digital, Data & Technology",Insight Direct UK Limited,364416,51428.40,Digital Infrastructure and Maintenanc-Clearing Account   - Cost - Computer Equipment,UB8 1PH,VENDOR
"Department for Business, Energy and Industrial Strategy","Department for Business, Energy and Industrial Strategy",30/10/2020,Clearing Account   - Cost - Computer Equipment,"Corporate Services - Digital, Data & Technology",Insight Direct UK Limited,364927,1248.00,Digital Infrastructure and Maintenanc-Clearing Account   - Cost - Computer Equipment,UB8 1PH,VENDOR
"Department for Business, Energy and Industrial Strategy","Department for Business, Energy and Industrial Strategy",30/10/2020,Clearing Account   - Cost - Computer Equipment,"Corporate Services - Digital, Data & Technology",Insight Direct UK Limited,365668,154285.20,Digital Infrastructure and Maintenanc-Clearing Account   - Cost - Computer Equipment,UB8 1PH,VENDOR
"Department for Business, Energy and Industrial Strategy","Department for Business, Energy and Industrial Strategy",30/10/2020,Clearing Account   - Cost - Computer Equipment,"Corporate Services - Digital, Data & Technology",Insight Direct UK Limited,366294,-154285.20,Digital Infrastructure and Maintenanc-Clearing Account   - Cost - Computer Equipment,UB8 1PH,VENDOR
"Department for Business, Energy and Industrial Strategy","Department for Business, Energy and Industrial Strategy",30/10/2020,Clearing Account   - Cost - Computer Equipment,"Corporate Services - Digital, Data & Technology",Insight Direct UK Limited,366294,308570.40,Digital Infrastructure and Maintenanc-Clearing Account   - Cost - Computer Equipment,UB8 1PH,VENDOR
"Department for Business, Energy and Industrial Strategy","Department for Business, Energy and Industrial Strategy",02/10/2020,Professional Subscriptions,Energy and Security - Energy Development and Resilience,Fairbanks Environmental Ltd,363207,12000.00,DSO Data contract-Professional Subscriptions,WN8 9TN,VENDOR
"Department for Business, Energy and Industrial Strategy","Department for Business, Energy and Industrial Strategy",08/10/2020,Stationery,Market Frameworks - Labour Market,"Personal Expense, Name Withheld",363975,50.98,EAS Enforcement-Stationery,,EMPLOYEE
"Department for Business, Energy and Industrial Strategy","Department for Business, Energy and Industrial Strategy",08/10/2020,Telephone Helpline Services,Market Frameworks - Labour Market,THEBIGWORD INTERPRETING SERVICES LTD,363839,5.49,EAS Enforcement-Telephone Helpline Services,LS12 6AB,VENDOR
"Department for Business, Energy and Industrial Strategy","Department for Business, Energy and Industrial Strategy",01/10/2020,R & D Research and Development Expenditure,"Industrial Strategy, Science and Innovation - International Science and Innovation",Government Property Agency,362734,21492.00,ECMWF HQ-R & D Research and Development Expenditure,EC4M 7HP,VENDOR
"Department for Business, Energy and Industrial Strategy","Department for Business, Energy and Industrial Strategy",23/10/2020,R & D Research and Development Expenditure,"Industrial Strategy, Science and Innovation - International Science and Innovation",Government Property Agency,362735,32297.48,ECMWF HQ-R & D Research and Development Expenditure,EC4M 7HP,VENDOR
"Department for Business, Energy and Industrial Strategy","Department for Business, Energy and Industrial Strategy",01/10/2020,R & D Research and Development Expenditure,"Industrial Strategy, Science and Innovation - International Science and Innovation",Government Property Agency,363004,13105.87,ECMWF HQ-R & D Research and Development Expenditure,EC4M 7HP,VENDOR
"Department for Business, Energy and Industrial Strategy","Department for Business, Energy and Industrial Strategy",01/10/2020,R & D Research and Development Expenditure,"Industrial Strategy, Science and Innovation - International Science and Innovation",Government Property Agency,363007,393.18,ECMWF HQ-R & D Research and Development Expenditure,EC4M 7HP,VENDOR
"Department for Business, Energy and Industrial Strategy","Department for Business, Energy and Industrial Strategy",19/10/2020,Outsourced Programme Management,Energy Transformation and Clean Growth - Energy Efficiency and Local,Crown Commercial Service,365007,5253.60,Eco Brokerage-Outsourced Programme Management,L3 9PP,WGA ONLY
"Department for Business, Energy and Industrial Strategy","Department for Business, Energy and Industrial Strategy",15/10/2020,Outsourced Programme Management,Energy Transformation and Clean Growth - Energy Efficiency and Local,BSI Standards Ltd,364689,49212.00,Electricity Demand Reduction-Outsourced Programme Management,MK1 9EL,VENDOR
"Department for Business, Energy and Industrial Strategy","Department for Business, Energy and Industrial Strategy",16/10/2020,Research and Development Expenditure,Energy Transformation and Clean Growth - Energy Efficiency and Local,Eunomia Research and Consulting Ltd,364882,34328.76,Electricity Demand Reduction-Research and Development Expenditure,BS1 4QS,VENDOR
"Department for Business, Energy and Industrial Strategy","Department for Business, Energy and Industrial Strategy",01/10/2020,Economic Consultancy & Research,"Trade, Europe and Analysis - Analysis Directorate",RICARDO-AEA LTD,362985,8067.66,Energy Satistics Research and Analysis-Economic Consultancy & Research,OX11 0QR,VENDOR
"Department for Business, Energy and Industrial Strategy","Department for Business, Energy and Industrial Strategy",05/10/2020,Economic Consultancy & Research,"Trade, Europe and Analysis - Analysis Directorate",RICARDO-AEA LTD,362987,929.73,Energy Satistics Research and Analysis-Economic Consultancy & Research,OX11 0QR,VENDOR
"Department for Business, Energy and Industrial Strategy","Department for Business, Energy and Industrial Strategy",05/10/2020,Economic Consultancy & Research,"Trade, Europe and Analysis - Analysis Directorate",RICARDO-AEA LTD,362992,2432.00,Energy Satistics Research and Analysis-Economic Consultancy & Research,OX11 0QR,VENDOR
"Department for Business, Energy and Industrial Strategy","Department for Business, Energy and Industrial Strategy",13/10/2020,Outsourced Programme Management,Energy Transformation and Clean Growth - Energy Efficiency and Local,Softwire Technology Ltd,364364,26350.00,Energy Savings Advice Service-Outsourced Programme Management,NW5 1TL,VENDOR
"Department for Business, Energy and Industrial Strategy","Department for Business, Energy and Industrial Strategy",30/10/2020,Outsourced Programme Management,Energy Transformation and Clean Growth - Energy Efficiency and Local,Sitel UK Ltd,366341,118138.25,Energy Savings Advice Service-Outsourced Programme Management,CV1 3BH,VENDOR
"Department for Business, Energy and Industrial Strategy","Department for Business, Energy and Industrial Strategy",30/10/2020,Outsourced Programme Management,Energy Transformation and Clean Growth - Energy Efficiency and Local,Sitel UK Ltd,366441,14093.35,Energy Savings Advice Service-Outsourced Programme Management,CV1 3BH,VENDOR
"Department for Business, Energy and Industrial Strategy","Department for Business, Energy and Industrial Strategy",02/10/2020,Outsourced Programme Management,Energy Transformation and Clean Growth - Energy Efficiency and Local,Fivium Ltd,363185,5150.00,Energy Technologies List-Outsourced Programme Management,WC2N 6AH,VENDOR
"Department for Business, Energy and Industrial Strategy","Department for Business, Energy and Industrial Strategy",07/10/2020,Outsourced Programme Management,Energy Transformation and Clean Growth - Energy Efficiency and Local,Fivium Ltd,363704,10356.70,Energy Technologies List-Outsourced Programme Management,WC2N 6AH,VENDOR
"Department for Business, Energy and Industrial Strategy","Department for Business, Energy and Industrial Strategy",12/10/2020,Outsourced Programme Management,Energy Transformation and Clean Growth - Energy Efficiency and Local,Fivium Ltd,364218,9473.00,Energy Technologies List-Outsourced Programme Management,WC2N 6AH,VENDOR
"Department for Business, Energy and Industrial Strategy","Department for Business, Energy and Industrial Strategy",06/10/2020,Outsourced Programme Management,Energy Transformation and Clean Growth - Energy Efficiency and Local,Fivium Ltd,363556,163.67,Energy Technology list Research and Products Policy Support ServicesE-Outsourced Programme Management,WC2N 6AH,VENDOR
"Department for Business, Energy and Industrial Strategy","Department for Business, Energy and Industrial Strategy",06/10/2020,Outsourced Programme Management,Energy Transformation and Clean Growth - Energy Efficiency and Local,Fivium Ltd,363556,1500.00,Energy Technology list Research and Products Policy Support ServicesE-Outsourced Programme Management,WC2N 6AH,VENDOR
"Department for Business, Energy and Industrial Strategy","Department for Business, Energy and Industrial Strategy",15/10/2020,Research and Development Expenditure,Energy Transformation and Clean Growth - Energy Efficiency and Local,ICF Consulting Services Ltd,364668,138129.13,Energy Technology list Research and Products Policy Support ServicesE-Research and Development Expenditure,EC4R 1BE,VENDOR
"Department for Business, Energy and Industrial Strategy","Department for Business, Energy and Industrial Strategy",01/10/2020,Grant-In-Aid to Arms Length Bodies,"Industrial Strategy, Science and Innovation - International Science and Innovation",UKRI - Engineering and Physical Sciences Research Council,362858,70000000.00,EPSRC Financing-Grant-In-Aid to Arms Length Bodies,SN2 1FF,VENDOR
"Department for Business, Energy and Industrial Strategy","Department for Business, Energy and Industrial Strategy",01/10/2020,Grant-In-Aid to Arms Length Bodies,"Industrial Strategy, Science and Innovation - International Science and Innovation",UKRI - Engineering and Physical Sciences Research Council,362859,15000000.00,EPSRC Financing-Grant-In-Aid to Arms Length Bodies,SN2 1FF,VENDOR
"Department for Business, Energy and Industrial Strategy","Department for Business, Energy and Industrial Strategy",01/10/2020,Grant-In-Aid to Arms Length Bodies,"Industrial Strategy, Science and Innovation - International Science and Innovation",UKRI - Economic and Social Research Council,362860,13000000.00,ESRC Financing-Grant-In-Aid to Arms Length Bodies,SN2 1UJ,WGA ONLY
"Department for Business, Energy and Industrial Strategy","Department for Business, Energy and Industrial Strategy",20/10/2020,Stationery,Market Frameworks - Consumer and Competition Policy,"Personal Expense, Name Withheld",365237,256.95,EU Exit Core BEIS Staff: Consumer/comp Workstream ADM-Stationery,,EMPLOYEE
"Department for Business, Energy and Industrial Strategy","Department for Business, Energy and Industrial Strategy",13/10/2020,Advertising,Corporate Services - Communications,Big Blue Door Ltd,364490,525.00,EU Exit Core BEIS Staff: Corporate Services ADM-Advertising,SE1 2PZ,VENDOR
"Department for Business, Energy and Industrial Strategy","Department for Business, Energy and Industrial Strategy",01/10/2020,EXP - Miscellaneous Expenditure - iExpenses,Corporate Services - DG CS Office,"Personal Expense, Name Withheld",363069,187.38,EU Exit Core BEIS Staff: Corporate Services ADM-EXP - Miscellaneous Expenditure - iExpenses,,EMPLOYEE
"Department for Business, Energy and Industrial Strategy","Department for Business, Energy and Industrial Strategy",02/10/2020,EXP - Miscellaneous Expenditure - iExpenses,"Corporate Services - Policy, Delivery and Private Office","Personal Expense, Name Withheld",363276,50.00,EU Exit Core BEIS Staff: Corporate Services ADM-EXP - Miscellaneous Expenditure - iExpenses,,EMPLOYEE
"Department for Business, Energy and Industrial Strategy","Department for Business, Energy and Industrial Strategy",21/10/2020,EXP - Miscellaneous Expenditure - iExpenses,Corporate Services - Human Resources,"Personal Expense, Name Withheld",365488,250.00,EU Exit Core BEIS Staff: Corporate Services ADM-EXP - Miscellaneous Expenditure - iExpenses,,EMPLOYEE
"Department for Business, Energy and Industrial Strategy","Department for Business, Energy and Industrial Strategy",06/10/2020,Hire of Interim Managers,Corporate Services - Commercial & Operations,Alexander Mann Solutions Ltd,363339,8007.12,EU Exit Core BEIS Staff: Corporate Services ADM-Hire of Interim Managers,EC2N 3AQ,VENDOR
"Department for Business, Energy and Industrial Strategy","Department for Business, Energy and Industrial Strategy",06/10/2020,Hire of Interim Managers,Corporate Services - Finance & Portfolio,Allen Lane Ltd,363625,3539.04,EU Exit Core BEIS Staff: Corporate Services ADM-Hire of Interim Managers,BN11 2BW,VENDOR
"Department for Business, Energy and Industrial Strategy","Department for Business, Energy and Industrial Strategy",06/10/2020,Hire of Interim Managers,"Corporate Services - Digital, Data & Technology",Allen Lane Ltd,363628,4020.00,EU Exit Core BEIS Staff: Corporate Services ADM-Hire of Interim Managers,SW1Y 5JH,VENDOR
"Department for Business, Energy and Industrial Strategy","Department for Business, Energy and Industrial Strategy",01/10/2020,Professional Training,Corporate Services - Organisational Development,"Personal Expense, Name Withheld",363073,72.00,EU Exit Core BEIS Staff: Corporate Services ADM-Professional Training,,EMPLOYEE
"Department for Business, Energy and Industrial Strategy","Department for Business, Energy and Industrial Strategy",02/10/2020,Stationery,Corporate Services - DG CS Office,"Personal Expense, Name Withheld",363271,22.99,EU Exit Core BEIS Staff: Corporate Services ADM-Stationery,,EMPLOYEE
"Department for Business, Energy and Industrial Strategy","Department for Business, Energy and Industrial Strategy",26/10/2020,Stationery,Corporate Services - Communications,"Personal Expense, Name Withheld",365930,31.98,EU Exit Core BEIS Staff: Corporate Services ADM-Stationery,,EMPLOYEE
"Department for Business, Energy and Industrial Strategy","Department for Business, Energy and Industrial Strategy",26/10/2020,Stationery,Corporate Services - Communications,"Personal Expense, Name Withheld",365931,85.00,EU Exit Core BEIS Staff: Corporate Services ADM-Stationery,,EMPLOYEE
"Department for Business, Energy and Industrial Strategy","Department for Business, Energy and Industrial Strategy",27/10/2020,Stationery,Corporate Services - Communications,"Personal Expense, Name Withheld",366044,69.48,EU Exit Core BEIS Staff: Corporate Services ADM-Stationery,,EMPLOYEE
"Department for Business, Energy and Industrial Strategy","Department for Business, Energy and Industrial Strategy",28/10/2020,Stationery,Business Sectors - Cities and Local Growth,"Personal Expense, Name Withheld",366200,67.94,EU Exit Core BEIS Staff: Corporate Services ADM-Stationery,,EMPLOYEE
"Department for Business, Energy and Industrial Strategy","Department for Business, Energy and Industrial Strategy",15/10/2020,Subsistence UK,Corporate Services - Communications,"Personal Expense, Name Withheld",364735,3.99,EU Exit Core BEIS Staff: Corporate Services ADM-Subsistence UK,,EMPLOYEE
"Department for Business, Energy and Industrial Strategy","Department for Business, Energy and Industrial Strategy",15/10/2020,Subsistence UK,Corporate Services - Communications,"Personal Expense, Name Withheld",364735,4.60,EU Exit Core BEIS Staff: Corporate Services ADM-Subsistence UK,,EMPLOYEE
"Department for Business, Energy and Industrial Strategy","Department for Business, Energy and Industrial Strategy",15/10/2020,Taxi Services UK,Corporate Services - Communications,"Personal Expense, Name Withheld",364735,20.40,EU Exit Core BEIS Staff: Corporate Services ADM-Taxi Services UK,,EMPLOYEE
"Department for Business, Energy and Industrial Strategy","Department for Business, Energy and Industrial Strategy",05/10/2020,EXP - Miscellaneous Expenditure - iExpenses,Energy Transformation and Clean Growth - Industrial Energy,"Personal Expense, Name Withheld",363529,70.99,EU Exit Core BEIS Staff: Energy & Climate Workstream ADM-EXP - Miscellaneous Expenditure - iExpenses,,EMPLOYEE
"Department for Business, Energy and Industrial Strategy","Department for Business, Energy and Industrial Strategy",05/10/2020,EXP - Miscellaneous Expenditure - iExpenses,Energy Transformation and Clean Growth - Climate and Energy - Trade and Europe,"Personal Expense, Name Withheld",363531,308.97,EU Exit Core BEIS Staff: Energy & Climate Workstream ADM-EXP - Miscellaneous Expenditure - iExpenses,,EMPLOYEE
"Department for Business, Energy and Industrial Strategy","Department for Business, Energy and Industrial Strategy",14/10/2020,EXP - Miscellaneous Expenditure - iExpenses,Energy Transformation and Clean Growth - Industrial Energy,"Personal Expense, Name Withheld",364626,120.99,EU Exit Core BEIS Staff: Energy & Climate Workstream ADM-EXP - Miscellaneous Expenditure - iExpenses,,EMPLOYEE
"Department for Business, Energy and Industrial Strategy","Department for Business, Energy and Industrial Strategy",13/10/2020,Other IT Consultancy,Energy Transformation and Clean Growth - Industrial Energy,PA CONSULTING GROUP LTD,364384,85937.48,EU Exit Core BEIS Staff: Energy & Climate Workstream ADM-Other IT Consultancy,SG8 6DP,VENDOR
"Department for Business, Energy and Industrial Strategy","Department for Business, Energy and Industrial Strategy",20/10/2020,Other Travel,Energy Transformation and Clean Growth - Climate and Energy - Trade and Europe,"Personal Expense, Name Withheld",365238,37.59,EU Exit Core BEIS Staff: Energy & Climate Workstream ADM-Other Travel,,EMPLOYEE
"Department for Business, Energy and Industrial Strategy","Department for Business, Energy and Industrial Strategy",07/10/2020,Stationery,Energy Transformation and Clean Growth - Industrial Energy,"Personal Expense, Name Withheld",363809,29.99,EU Exit Core BEIS Staff: Energy & Climate Workstream ADM-Stationery,,EMPLOYEE
"Department for Business, Energy and Industrial Strategy","Department for Business, Energy and Industrial Strategy",14/10/2020,Stationery,Energy Transformation and Clean Growth - Industrial Energy,"Personal Expense, Name Withheld",364618,19.99,EU Exit Core BEIS Staff: Energy & Climate Workstream ADM-Stationery,,EMPLOYEE
"Department for Business, Energy and Industrial Strategy","Department for Business, Energy and Industrial Strategy",22/10/2020,Stationery,Energy Transformation and Clean Growth - Industrial Energy,"Personal Expense, Name Withheld",365626,75.00,EU Exit Core BEIS Staff: Energy & Climate Workstream ADM-Stationery,,EMPLOYEE
"Department for Business, Energy and Industrial Strategy","Department for Business, Energy and Industrial Strategy",26/10/2020,Stationery,Energy Transformation and Clean Growth - Energy Efficiency and Local,"Personal Expense, Name Withheld",365725,188.99,EU Exit Core BEIS Staff: Energy & Climate Workstream ADM-Stationery,,EMPLOYEE
"Department for Business, Energy and Industrial Strategy","Department for Business, Energy and Industrial Strategy",28/10/2020,Stationery,Energy Transformation and Clean Growth - Industrial Energy,"Personal Expense, Name Withheld",366190,200.99,EU Exit Core BEIS Staff: Energy & Climate Workstream ADM-Stationery,,EMPLOYEE
"Department for Business, Energy and Industrial Strategy","Department for Business, Energy and Industrial Strategy",30/10/2020,Business Rates,"Trade, Europe and Analysis - Economic Partnerships Directorate",PICKFORDS MOVE MANAGEMENT LTD,366443,400.00,EU Exit Core BEIS Staff: EU Exit Programme ADM-Business Rates,NW10 0TG,VENDOR
"Department for Business, Energy and Industrial Strategy","Department for Business, Energy and Industrial Strategy",30/10/2020,Consultancy Expenditure,"Trade, Europe and Analysis - Trade and Investment Negotiations Services",SQW LTD T/A SQW CONSULTING,366371,34627.50,EU Exit Core BEIS Staff: EU Exit Programme ADM-Consultancy Expenditure,OX1 1BY,VENDOR
"Department for Business, Energy and Industrial Strategy","Department for Business, Energy and Industrial Strategy",07/10/2020,Economic Consultancy & Research,"Trade, Europe and Analysis - Economic Partnerships Directorate",HM Treasury,363846,4629.40,EU Exit Core BEIS Staff: EU Exit Programme ADM-Economic Consultancy & Research,NR7 0HS,WGA ONLY
"Department for Business, Energy and Industrial Strategy","Department for Business, Energy and Industrial Strategy",20/10/2020,Economic Consultancy & Research,Business Sectors - Business Intelligence and Readiness,QUALTRICS LLC,365213,4721.00,EU Exit Core BEIS Staff: EU Exit Programme ADM-Economic Consultancy & Research,84604,VENDOR
"Department for Business, Energy and Industrial Strategy","Department for Business, Energy and Industrial Strategy",20/10/2020,Entertaining Overseas,"Trade, Europe and Analysis - Economic Partnerships Directorate","Personal Expense, Name Withheld",365224,497.24,EU Exit Core BEIS Staff: EU Exit Programme ADM-Entertaining Overseas,,EMPLOYEE
"Department for Business, Energy and Industrial Strategy","Department for Business, Energy and Industrial Strategy",06/10/2020,EXP - Miscellaneous Expenditure - iExpenses,"Trade, Europe and Analysis - Trade and Investment Negotiations Services","Personal Expense, Name Withheld",363654,27.98,EU Exit Core BEIS Staff: EU Exit Programme ADM-EXP - Miscellaneous Expenditure - iExpenses,,EMPLOYEE
"Department for Business, Energy and Industrial Strategy","Department for Business, Energy and Industrial Strategy",20/10/2020,EXP - Miscellaneous Expenditure - iExpenses,"Trade, Europe and Analysis - Economic Partnerships Directorate","Personal Expense, Name Withheld",365224,8.40,EU Exit Core BEIS Staff: EU Exit Programme ADM-EXP - Miscellaneous Expenditure - iExpenses,,EMPLOYEE
"Department for Business, Energy and Industrial Strategy","Department for Business, Energy and Industrial Strategy",22/10/2020,EXP - Miscellaneous Expenditure - iExpenses,"Trade, Europe and Analysis - Trade and Investment Negotiations Services","Personal Expense, Name Withheld",365607,129.99,EU Exit Core BEIS Staff: EU Exit Programme ADM-EXP - Miscellaneous Expenditure - iExpenses,,EMPLOYEE
"Department for Business, Energy and Industrial Strategy","Department for Business, Energy and Industrial Strategy",28/10/2020,EXP - Miscellaneous Expenditure - iExpenses,"Trade, Europe and Analysis - Economic Partnerships Directorate","Personal Expense, Name Withheld",366196,136.00,EU Exit Core BEIS Staff: EU Exit Programme ADM-EXP - Miscellaneous Expenditure - iExpenses,,EMPLOYEE
"Department for Business, Energy and Industrial Strategy","Department for Business, Energy and Industrial Strategy",28/10/2020,EXP - Miscellaneous Expenditure - iExpenses,"Trade, Europe and Analysis - Economic Partnerships Directorate","Personal Expense, Name Withheld",366197,21.57,EU Exit Core BEIS Staff: EU Exit Programme ADM-EXP - Miscellaneous Expenditure - iExpenses,,EMPLOYEE
"Department for Business, Energy and Industrial Strategy","Department for Business, Energy and Industrial Strategy",29/10/2020,EXP - Miscellaneous Expenditure - iExpenses,"Trade, Europe and Analysis - Economic Partnerships Directorate","Personal Expense, Name Withheld",366311,262.93,EU Exit Core BEIS Staff: EU Exit Programme ADM-EXP - Miscellaneous Expenditure - iExpenses,,EMPLOYEE
"Department for Business, Energy and Industrial Strategy","Department for Business, Energy and Industrial Strategy",30/10/2020,EXP - Miscellaneous Expenditure - iExpenses,"Trade, Europe and Analysis - Economic Partnerships Directorate","Personal Expense, Name Withheld",366517,29.99,EU Exit Core BEIS Staff: EU Exit Programme ADM-EXP - Miscellaneous Expenditure - iExpenses,,EMPLOYEE
"Department for Business, Energy and Industrial Strategy","Department for Business, Energy and Industrial Strategy",29/10/2020,Hotel & Accommodation Overseas,"Trade, Europe and Analysis - Trade and Investment Negotiations Services","Personal Expense, Name Withheld",366322,38.11,EU Exit Core BEIS Staff: EU Exit Programme ADM-Hotel & Accommodation Overseas,,EMPLOYEE
"Department for Business, Energy and Industrial Strategy","Department for Business, Energy and Industrial Strategy",22/10/2020,Postage,"Trade, Europe and Analysis - Trade and Europe Portfolio Directorate","Personal Expense, Name Withheld",365611,4.70,EU Exit Core BEIS Staff: EU Exit Programme ADM-Postage,,EMPLOYEE
"Department for Business, Energy and Industrial Strategy","Department for Business, Energy and Industrial Strategy",23/10/2020,Purchase of Intangible Software,Business Sectors - Business Intelligence and Readiness,The WorkCast Corporation Ltd,365740,6597.60,EU Exit Core BEIS Staff: EU Exit Programme ADM-Purchase of Intangible Software,DH4 5RA,VENDOR
"Department for Business, Energy and Industrial Strategy","Department for Business, Energy and Industrial Strategy",20/10/2020,Rail Travel Overseas,"Trade, Europe and Analysis - Economic Partnerships Directorate","Personal Expense, Name Withheld",365224,1.83,EU Exit Core BEIS Staff: EU Exit Programme ADM-Rail Travel Overseas,,EMPLOYEE
"Department for Business, Energy and Industrial Strategy","Department for Business, Energy and Industrial Strategy",16/10/2020,Recruitment Advice and Services,"Trade, Europe and Analysis - Trade and Europe Portfolio Directorate",Cabinet Office,364965,4000.00,EU Exit Core BEIS Staff: EU Exit Programme ADM-Recruitment Advice and Services,FY1 9JN,WGA ONLY
"Department for Business, Energy and Industrial Strategy","Department for Business, Energy and Industrial Strategy",06/10/2020,Stationery,"Trade, Europe and Analysis - Economic Partnerships Directorate","Personal Expense, Name Withheld",363641,74.97,EU Exit Core BEIS Staff: EU Exit Programme ADM-Stationery,,EMPLOYEE
"Department for Business, Energy and Industrial Strategy","Department for Business, Energy and Industrial Strategy",06/10/2020,Stationery,"Trade, Europe and Analysis - Trade and Europe Portfolio Directorate","Personal Expense, Name Withheld",363657,32.94,EU Exit Core BEIS Staff: EU Exit Programme ADM-Stationery,,EMPLOYEE
"Department for Business, Energy and Industrial Strategy","Department for Business, Energy and Industrial Strategy",06/10/2020,Stationery,"Trade, Europe and Analysis - EU Trade Negotiation Analysis","Personal Expense, Name Withheld",363661,39.99,EU Exit Core BEIS Staff: EU Exit Programme ADM-Stationery,,EMPLOYEE
"Department for Business, Energy and Industrial Strategy","Department for Business, Energy and Industrial Strategy",07/10/2020,Stationery,Business Sectors - Business Intelligence and Readiness,"Personal Expense, Name Withheld",363811,177.98,EU Exit Core BEIS Staff: EU Exit Programme ADM-Stationery,,EMPLOYEE
"Department for Business, Energy and Industrial Strategy","Department for Business, Energy and Industrial Strategy",08/10/2020,Stationery,"Trade, Europe and Analysis - Trade and Europe Portfolio Directorate","Personal Expense, Name Withheld",363977,149.98,EU Exit Core BEIS Staff: EU Exit Programme ADM-Stationery,,EMPLOYEE
"Department for Business, Energy and Industrial Strategy","Department for Business, Energy and Industrial Strategy",13/10/2020,Stationery,"Trade, Europe and Analysis - Trade and Investment Negotiations Services","Personal Expense, Name Withheld",364426,274.92,EU Exit Core BEIS Staff: EU Exit Programme ADM-Stationery,,EMPLOYEE
"Department for Business, Energy and Industrial Strategy","Department for Business, Energy and Industrial Strategy",16/10/2020,Stationery,"Trade, Europe and Analysis - Economic Partnerships Directorate","Personal Expense, Name Withheld",364461,225.90,EU Exit Core BEIS Staff: EU Exit Programme ADM-Stationery,,EMPLOYEE
"Department for Business, Energy and Industrial Strategy","Department for Business, Energy and Industrial Strategy",13/10/2020,Stationery,"Trade, Europe and Analysis - Trade and Europe Portfolio Directorate","Personal Expense, Name Withheld",364473,9.39,EU Exit Core BEIS Staff: EU Exit Programme ADM-Stationery,,EMPLOYEE
"Department for Business, Energy and Industrial Strategy","Department for Business, Energy and Industrial Strategy",16/10/2020,Stationery,"Trade, Europe and Analysis - Economic Partnerships Directorate","Personal Expense, Name Withheld",364629,19.99,EU Exit Core BEIS Staff: EU Exit Programme ADM-Stationery,,EMPLOYEE
"Department for Business, Energy and Industrial Strategy","Department for Business, Energy and Industrial Strategy",19/10/2020,Stationery,"Trade, Europe and Analysis - Economic Partnerships Directorate","Personal Expense, Name Withheld",365114,162.98,EU Exit Core BEIS Staff: EU Exit Programme ADM-Stationery,,EMPLOYEE
"Department for Business, Energy and Industrial Strategy","Department for Business, Energy and Industrial Strategy",20/10/2020,Stationery,"Trade, Europe and Analysis - Trade and Investment Negotiations Services","Personal Expense, Name Withheld",365229,29.99,EU Exit Core BEIS Staff: EU Exit Programme ADM-Stationery,,EMPLOYEE
"Department for Business, Energy and Industrial Strategy","Department for Business, Energy and Industrial Strategy",20/10/2020,Stationery,Market Frameworks - Labour Market,"Personal Expense, Name Withheld",365230,11.48,EU Exit Core BEIS Staff: EU Exit Programme ADM-Stationery,,EMPLOYEE
"Department for Business, Energy and Industrial Strategy","Department for Business, Energy and Industrial Strategy",20/10/2020,Stationery,"Trade, Europe and Analysis - Trade and Investment Negotiations Goods","Personal Expense, Name Withheld",365260,93.95,EU Exit Core BEIS Staff: EU Exit Programme ADM-Stationery,,EMPLOYEE
"Department for Business, Energy and Industrial Strategy","Department for Business, Energy and Industrial Strategy",20/10/2020,Stationery,"Trade, Europe and Analysis - Trade and Investment Negotiations Goods","Personal Expense, Name Withheld",365262,195.20,EU Exit Core BEIS Staff: EU Exit Programme ADM-Stationery,,EMPLOYEE
"Department for Business, Energy and Industrial Strategy","Department for Business, Energy and Industrial Strategy",21/10/2020,Stationery,"Trade, Europe and Analysis - Economic Partnerships Directorate","Personal Expense, Name Withheld",365484,52.47,EU Exit Core BEIS Staff: EU Exit Programme ADM-Stationery,,EMPLOYEE
"Department for Business, Energy and Industrial Strategy","Department for Business, Energy and Industrial Strategy",21/10/2020,Stationery,"Trade, Europe and Analysis - Trade and Investment Negotiations Services","Personal Expense, Name Withheld",365485,199.94,EU Exit Core BEIS Staff: EU Exit Programme ADM-Stationery,,EMPLOYEE
"Department for Business, Energy and Industrial Strategy","Department for Business, Energy and Industrial Strategy",21/10/2020,Stationery,"Trade, Europe and Analysis - Economic Partnerships Directorate","Personal Expense, Name Withheld",365494,225.56,EU Exit Core BEIS Staff: EU Exit Programme ADM-Stationery,,EMPLOYEE
"Department for Business, Energy and Industrial Strategy","Department for Business, Energy and Industrial Strategy",27/10/2020,Stationery,"Trade, Europe and Analysis - Economic Partnerships Directorate","Personal Expense, Name Withheld",366048,39.98,EU Exit Core BEIS Staff: EU Exit Programme ADM-Stationery,,EMPLOYEE
"Department for Business, Energy and Industrial Strategy","Department for Business, Energy and Industrial Strategy",20/10/2020,Subsistence Overseas,"Trade, Europe and Analysis - Economic Partnerships Directorate","Personal Expense, Name Withheld",365224,2.62,EU Exit Core BEIS Staff: EU Exit Programme ADM-Subsistence Overseas,,EMPLOYEE
"Department for Business, Energy and Industrial Strategy","Department for Business, Energy and Industrial Strategy",20/10/2020,Subsistence Overseas,"Trade, Europe and Analysis - Economic Partnerships Directorate","Personal Expense, Name Withheld",365224,21.74,EU Exit Core BEIS Staff: EU Exit Programme ADM-Subsistence Overseas,,EMPLOYEE
"Department for Business, Energy and Industrial Strategy","Department for Business, Energy and Industrial Strategy",20/10/2020,Subsistence Overseas,"Trade, Europe and Analysis - Economic Partnerships Directorate","Personal Expense, Name Withheld",365224,36.51,EU Exit Core BEIS Staff: EU Exit Programme ADM-Subsistence Overseas,,EMPLOYEE
"Department for Business, Energy and Industrial Strategy","Department for Business, Energy and Industrial Strategy",29/10/2020,Subsistence Overseas,"Trade, Europe and Analysis - Trade and Investment Negotiations Services","Personal Expense, Name Withheld",366322,8.19,EU Exit Core BEIS Staff: EU Exit Programme ADM-Subsistence Overseas,,EMPLOYEE
"Department for Business, Energy and Industrial Strategy","Department for Business, Energy and Industrial Strategy",29/10/2020,Subsistence Overseas,"Trade, Europe and Analysis - Trade and Investment Negotiations Services","Personal Expense, Name Withheld",366322,24.17,EU Exit Core BEIS Staff: EU Exit Programme ADM-Subsistence Overseas,,EMPLOYEE
"Department for Business, Energy and Industrial Strategy","Department for Business, Energy and Industrial Strategy",29/10/2020,Subsistence Overseas,"Trade, Europe and Analysis - Trade and Investment Negotiations Services","Personal Expense, Name Withheld",366322,92.30,EU Exit Core BEIS Staff: EU Exit Programme ADM-Subsistence Overseas,,EMPLOYEE
"Department for Business, Energy and Industrial Strategy","Department for Business, Energy and Industrial Strategy",20/10/2020,Taxi Services Overseas,"Trade, Europe and Analysis - Economic Partnerships Directorate","Personal Expense, Name Withheld",365224,19.98,EU Exit Core BEIS Staff: EU Exit Programme ADM-Taxi Services Overseas,,EMPLOYEE
"Department for Business, Energy and Industrial Strategy","Department for Business, Energy and Industrial Strategy",23/10/2020,Recruitment Assessment Services,Energy and Security - Nuclear Directorate - HSQ,Cabinet Office,365691,-4400.00,EU Exit Core BEIS Staff: Euratom Workstream ADM-Recruitment Assessment Services,FY1 9JN,WGA ONLY
"Department for Business, Energy and Industrial Strategy","Department for Business, Energy and Industrial Strategy",23/10/2020,Recruitment Assessment Services,Energy and Security - Nuclear Directorate - HSQ,Cabinet Office,365693,4400.00,EU Exit Core BEIS Staff: Euratom Workstream ADM-Recruitment Assessment Services,FY1 9JN,WGA ONLY
"Department for Business, Energy and Industrial Strategy","Department for Business, Energy and Industrial Strategy",09/10/2020,Stationery,Energy and Security - Nuclear Directorate - HSQ,"Personal Expense, Name Withheld",364153,115.00,EU Exit Core BEIS Staff: Euratom Workstream ADM-Stationery,,EMPLOYEE
"Department for Business, Energy and Industrial Strategy","Department for Business, Energy and Industrial Strategy",15/10/2020,Stationery,Energy and Security - Nuclear Directorate - HSQ,"Personal Expense, Name Withheld",364743,33.99,EU Exit Core BEIS Staff: Euratom Workstream ADM-Stationery,,EMPLOYEE
"Department for Business, Energy and Industrial Strategy","Department for Business, Energy and Industrial Strategy",22/10/2020,Stationery,Energy and Security - Nuclear Directorate - HSQ,"Personal Expense, Name Withheld",365621,75.95,EU Exit Core BEIS Staff: Euratom Workstream ADM-Stationery,,EMPLOYEE
"Department for Business, Energy and Industrial Strategy","Department for Business, Energy and Industrial Strategy",19/10/2020,Subsistence Overseas,Energy and Security - Nuclear Directorate - HSQ,"Personal Expense, Name Withheld",365115,5.45,EU Exit Core BEIS Staff: Euratom Workstream ADM-Subsistence Overseas,,EMPLOYEE
"Department for Business, Energy and Industrial Strategy","Department for Business, Energy and Industrial Strategy",19/10/2020,Subsistence Overseas,Energy and Security - Nuclear Directorate - HSQ,"Personal Expense, Name Withheld",365115,11.71,EU Exit Core BEIS Staff: Euratom Workstream ADM-Subsistence Overseas,,EMPLOYEE
"Department for Business, Energy and Industrial Strategy","Department for Business, Energy and Industrial Strategy",19/10/2020,Subsistence Overseas,Energy and Security - Nuclear Directorate - HSQ,"Personal Expense, Name Withheld",365115,47.32,EU Exit Core BEIS Staff: Euratom Workstream ADM-Subsistence Overseas,,EMPLOYEE
"Department for Business, Energy and Industrial Strategy","Department for Business, Energy and Industrial Strategy",13/10/2020,Other Travel,SCIN - OFC Negotiations - SCIN - OFC Negotiations,"Personal Expense, Name Withheld",364465,36.00,EU Exit Core BEIS Staff: Negotiations ADM-Other Travel,,EMPLOYEE
"Department for Business, Energy and Industrial Strategy","Department for Business, Energy and Industrial Strategy",14/10/2020,Other Travel,SCIN - OFC Negotiations - SCIN - OFC Negotiations,"Personal Expense, Name Withheld",364615,25.00,EU Exit Core BEIS Staff: Negotiations ADM-Other Travel,,EMPLOYEE
"Department for Business, Energy and Industrial Strategy","Department for Business, Energy and Industrial Strategy",15/10/2020,Other Travel,SCIN - OFC Negotiations - SCIN - OFC Negotiations,"Personal Expense, Name Withheld",364748,15.00,EU Exit Core BEIS Staff: Negotiations ADM-Other Travel,,EMPLOYEE
"Department for Business, Energy and Industrial Strategy","Department for Business, Energy and Industrial Strategy",20/10/2020,Other Travel,SCIN - OFC Negotiations - SCIN - OFC Negotiations,"Personal Expense, Name Withheld",365247,18.40,EU Exit Core BEIS Staff: Negotiations ADM-Other Travel,,EMPLOYEE
"Department for Business, Energy and Industrial Strategy","Department for Business, Energy and Industrial Strategy",19/10/2020,Rail Travel UK,SCIN - OFC Negotiations - SCIN - OFC Negotiations,"Personal Expense, Name Withheld",365108,53.30,EU Exit Core BEIS Staff: Negotiations ADM-Rail Travel UK,,EMPLOYEE
"Department for Business, Energy and Industrial Strategy","Department for Business, Energy and Industrial Strategy",20/10/2020,Rail Travel UK,SCIN - OFC Negotiations - SCIN - OFC Negotiations,"Personal Expense, Name Withheld",365247,53.30,EU Exit Core BEIS Staff: Negotiations ADM-Rail Travel UK,,EMPLOYEE
"Department for Business, Energy and Industrial Strategy","Department for Business, Energy and Industrial Strategy",09/10/2020,Subsistence Overseas,SCIN - OFC Negotiations - SCIN - OFC Negotiations,"Personal Expense, Name Withheld",364145,36.87,EU Exit Core BEIS Staff: Negotiations ADM-Subsistence Overseas,,EMPLOYEE
"Department for Business, Energy and Industrial Strategy","Department for Business, Energy and Industrial Strategy",15/10/2020,Subsistence Overseas,SCIN - OFC Negotiations - SCIN - OFC Negotiations,"Personal Expense, Name Withheld",364749,53.97,EU Exit Core BEIS Staff: Negotiations ADM-Subsistence Overseas,,EMPLOYEE
"Department for Business, Energy and Industrial Strategy","Department for Business, Energy and Industrial Strategy",20/10/2020,Subsistence Overseas,SCIN - OFC Negotiations - SCIN - OFC Negotiations,"Personal Expense, Name Withheld",365246,27.18,EU Exit Core BEIS Staff: Negotiations ADM-Subsistence Overseas,,EMPLOYEE
"Department for Business, Energy and Industrial Strategy","Department for Business, Energy and Industrial Strategy",13/10/2020,Subsistence UK,SCIN - OFC Negotiations - SCIN - OFC Negotiations,"Personal Expense, Name Withheld",364465,12.44,EU Exit Core BEIS Staff: Negotiations ADM-Subsistence UK,,EMPLOYEE
"Department for Business, Energy and Industrial Strategy","Department for Business, Energy and Industrial Strategy",20/10/2020,Subsistence UK,SCIN - OFC Negotiations - SCIN - OFC Negotiations,"Personal Expense, Name Withheld",365247,14.49,EU Exit Core BEIS Staff: Negotiations ADM-Subsistence UK,,EMPLOYEE
"Department for Business, Energy and Industrial Strategy","Department for Business, Energy and Industrial Strategy",20/10/2020,Taxi Services Overseas,SCIN - OFC Negotiations - SCIN - OFC Negotiations,"Personal Expense, Name Withheld",365246,10.69,EU Exit Core BEIS Staff: Negotiations ADM-Taxi Services Overseas,,EMPLOYEE
"Department for Business, Energy and Industrial Strategy","Department for Business, Energy and Industrial Strategy",19/10/2020,Taxi Services UK,SCIN - OFC Negotiations - SCIN - OFC Negotiations,"Personal Expense, Name Withheld",365108,17.62,EU Exit Core BEIS Staff: Negotiations ADM-Taxi Services UK,,EMPLOYEE
"Department for Business, Energy and Industrial Strategy","Department for Business, Energy and Industrial Strategy",05/10/2020,Hire of Agency Staff,"Industrial Strategy, Science and Innovation - Industrial Strategy",Hays Specialist Recruitment Ltd,363195,1154.40,EU Exit Core BEIS Staff: No specific DExEU issue ADM-Hire of Agency Staff,KT3 4JQ,VENDOR
"Department for Business, Energy and Industrial Strategy","Department for Business, Energy and Industrial Strategy",09/10/2020,Hire of Agency Staff,"Industrial Strategy, Science and Innovation - Industrial Strategy",Hays Specialist Recruitment Ltd,364119,1136.64,EU Exit Core BEIS Staff: No specific DExEU issue ADM-Hire of Agency Staff,KT3 4JQ,VENDOR
"Department for Business, Energy and Industrial Strategy","Department for Business, Energy and Industrial Strategy",09/10/2020,Hire of Agency Staff,"Industrial Strategy, Science and Innovation - Industrial Strategy",Hays Specialist Recruitment Ltd,364120,852.48,EU Exit Core BEIS Staff: No specific DExEU issue ADM-Hire of Agency Staff,KT3 4JQ,VENDOR
"Department for Business, Energy and Industrial Strategy","Department for Business, Energy and Industrial Strategy",09/10/2020,Hire of Agency Staff,"Industrial Strategy, Science and Innovation - Industrial Strategy",Hays Specialist Recruitment Ltd,364123,852.48,EU Exit Core BEIS Staff: No specific DExEU issue ADM-Hire of Agency Staff,KT3 4JQ,VENDOR
"Department for Business, Energy and Industrial Strategy","Department for Business, Energy and Industrial Strategy",09/10/2020,Hire of Agency Staff,"Industrial Strategy, Science and Innovation - Industrial Strategy",Hays Specialist Recruitment Ltd,364125,1136.64,EU Exit Core BEIS Staff: No specific DExEU issue ADM-Hire of Agency Staff,KT3 4JQ,VENDOR
"Department for Business, Energy and Industrial Strategy","Department for Business, Energy and Industrial Strategy",09/10/2020,Hire of Agency Staff,"Industrial Strategy, Science and Innovation - Industrial Strategy",Hays Specialist Recruitment Ltd,364134,888.00,EU Exit Core BEIS Staff: No specific DExEU issue ADM-Hire of Agency Staff,KT3 4JQ,VENDOR
"Department for Business, Energy and Industrial Strategy","Department for Business, Energy and Industrial Strategy",02/10/2020,Stationery,Business Sectors - Advanced Manufacturing,"Personal Expense, Name Withheld",363267,22.99,EU Exit Core BEIS Staff: No specific DExEU issue ADM-Stationery,,EMPLOYEE
"Department for Business, Energy and Industrial Strategy","Department for Business, Energy and Industrial Strategy",13/10/2020,Stationery,Business Sectors - Advanced Manufacturing,"Personal Expense, Name Withheld",364478,239.98,EU Exit Core BEIS Staff: No specific DExEU issue ADM-Stationery,,EMPLOYEE
"Department for Business, Energy and Industrial Strategy","Department for Business, Energy and Industrial Strategy",21/10/2020,Stationery,Market Frameworks - Regulation Executive,"Personal Expense, Name Withheld",365480,231.37,EU Exit Core BEIS Staff: No specific DExEU issue ADM-Stationery,,EMPLOYEE
"Department for Business, Energy and Industrial Strategy","Department for Business, Energy and Industrial Strategy",22/10/2020,Stationery,Market Frameworks - Regulation Executive,"Personal Expense, Name Withheld",365612,256.98,EU Exit Core BEIS Staff: No specific DExEU issue ADM-Stationery,,EMPLOYEE
"Department for Business, Energy and Industrial Strategy","Department for Business, Energy and Industrial Strategy",19/10/2020,Strategy Consultancy,"Industrial Strategy, Science and Innovation - Industrial Strategy",Cabinet Office,365127,11970.00,EU Exit Core BEIS Staff: No specific DExEU issue ADM-Strategy Consultancy,SW1A 2HQ,WGA ONLY
"Department for Business, Energy and Industrial Strategy","Department for Business, Energy and Industrial Strategy",07/10/2020,Stationery,Market Frameworks - Office for Product Safety and Standards,"Personal Expense, Name Withheld",363800,195.97,EU Exit Core BEIS Staff: Reg Delivery Workstream ADM-Stationery,,EMPLOYEE
"Department for Business, Energy and Industrial Strategy","Department for Business, Energy and Industrial Strategy",08/10/2020,Stationery,Market Frameworks - Office for Product Safety and Standards,"Personal Expense, Name Withheld",363968,240.92,EU Exit Core BEIS Staff: Reg Delivery Workstream ADM-Stationery,,EMPLOYEE
"Department for Business, Energy and Industrial Strategy","Department for Business, Energy and Industrial Strategy",14/10/2020,Stationery,Market Frameworks - Office for Product Safety and Standards,"Personal Expense, Name Withheld",364625,179.00,EU Exit Core BEIS Staff: Reg Delivery Workstream ADM-Stationery,,EMPLOYEE
"Department for Business, Energy and Industrial Strategy","Department for Business, Energy and Industrial Strategy",16/10/2020,Stationery,Market Frameworks - Office for Product Safety and Standards,"Personal Expense, Name Withheld",364936,95.99,EU Exit Core BEIS Staff: Reg Delivery Workstream ADM-Stationery,,EMPLOYEE
"Department for Business, Energy and Industrial Strategy","Department for Business, Energy and Industrial Strategy",30/10/2020,Stationery,Market Frameworks - Office for Product Safety and Standards,"Personal Expense, Name Withheld",366512,109.99,EU Exit Core BEIS Staff: Reg Delivery Workstream ADM-Stationery,,EMPLOYEE
"Department for Business, Energy and Industrial Strategy","Department for Business, Energy and Industrial Strategy",13/10/2020,EXP - Miscellaneous Expenditure - iExpenses,"Industrial Strategy, Science and Innovation - International Science and Innovation","Personal Expense, Name Withheld",364457,16.99,EU Exit Core BEIS Staff: Res & Inn Workstream ADM-EXP - Miscellaneous Expenditure - iExpenses,,EMPLOYEE
"Department for Business, Energy and Industrial Strategy","Department for Business, Energy and Industrial Strategy",02/10/2020,Stationery,"Industrial Strategy, Science and Innovation - International Science and Innovation","Personal Expense, Name Withheld",363266,61.97,EU Exit Core BEIS Staff: Res & Inn Workstream ADM-Stationery,,EMPLOYEE
"Department for Business, Energy and Industrial Strategy","Department for Business, Energy and Industrial Strategy",05/10/2020,Stationery,"Industrial Strategy, Science and Innovation - International Science and Innovation","Personal Expense, Name Withheld",363522,32.67,EU Exit Core BEIS Staff: Res & Inn Workstream ADM-Stationery,,EMPLOYEE
"Department for Business, Energy and Industrial Strategy","Department for Business, Energy and Industrial Strategy",05/10/2020,Stationery,"Industrial Strategy, Science and Innovation - International Science and Innovation","Personal Expense, Name Withheld",363526,41.98,EU Exit Core BEIS Staff: Res & Inn Workstream ADM-Stationery,,EMPLOYEE
"Department for Business, Energy and Industrial Strategy","Department for Business, Energy and Industrial Strategy",16/10/2020,Stationery,"Industrial Strategy, Science and Innovation - International Science and Innovation","Personal Expense, Name Withheld",364929,76.80,EU Exit Core BEIS Staff: Res & Inn Workstream ADM-Stationery,,EMPLOYEE
"Department for Business, Energy and Industrial Strategy","Department for Business, Energy and Industrial Strategy",22/10/2020,Stationery,"Industrial Strategy, Science and Innovation - International Science and Innovation","Personal Expense, Name Withheld",365618,119.99,EU Exit Core BEIS Staff: Res & Inn Workstream ADM-Stationery,,EMPLOYEE
"Department for Business, Energy and Industrial Strategy","Department for Business, Energy and Industrial Strategy",26/10/2020,Stationery,"Industrial Strategy, Science and Innovation - International Science and Innovation","Personal Expense, Name Withheld",365936,32.29,EU Exit Core BEIS Staff: Res & Inn Workstream ADM-Stationery,,EMPLOYEE
"Department for Business, Energy and Industrial Strategy","Department for Business, Energy and Industrial Strategy",27/10/2020,Stationery,"Industrial Strategy, Science and Innovation - International Science and Innovation","Personal Expense, Name Withheld",366039,192.00,EU Exit Core BEIS Staff: Res & Inn Workstream ADM-Stationery,,EMPLOYEE
"Department for Business, Energy and Industrial Strategy","Department for Business, Energy and Industrial Strategy",14/10/2020,Taxi Services UK,SCIN - Subsidy Control - SCIN - Subsidy Control,"Personal Expense, Name Withheld",364642,28.00,EU Exit Core BEIS Staff: Subsidies Workstream ADM-Taxi Services UK,,EMPLOYEE
"Department for Business, Energy and Industrial Strategy","Department for Business, Energy and Industrial Strategy",06/10/2020,Current Grants To Private Sector - NPISH,BI Regional Growth Fund - BI Regional Growth Fund,Scottish Chambers of Commerce Ltd,363551,10304.90,EU Exit: BRO Fund-Current Grants To Private Sector - NPISH,G4 0TX,VENDOR
"Department for Business, Energy and Industrial Strategy","Department for Business, Energy and Industrial Strategy",01/10/2020,Consultancy Expenditure,Corporate Services - Commercial & Operations,PA Consulting Services Ltd,358931,23970.00,EU Exit: Commercial ADM-Consultancy Expenditure,SW1E 5DN,VENDOR
"Department for Business, Energy and Industrial Strategy","Department for Business, Energy and Industrial Strategy",02/10/2020,Consultancy Expenditure,Corporate Services - Commercial & Operations,PA Consulting Services Ltd,363098,150817.50,EU Exit: Commercial ADM-Consultancy Expenditure,SW1E 5DN,VENDOR
"Department for Business, Energy and Industrial Strategy","Department for Business, Energy and Industrial Strategy",15/10/2020,Consultancy Expenditure,Corporate Services - Commercial & Operations,Deloitte LLP,364708,58140.00,EU Exit: Commercial ADM-Consultancy Expenditure,EC4A 4TR,VENDOR
"Department for Business, Energy and Industrial Strategy","Department for Business, Energy and Industrial Strategy",16/10/2020,Consultancy Expenditure,Corporate Services - Commercial & Operations,Deloitte LLP,364849,-19832.00,EU Exit: Commercial ADM-Consultancy Expenditure,MK9 1FD,VENDOR
"Department for Business, Energy and Industrial Strategy","Department for Business, Energy and Industrial Strategy",16/10/2020,Consultancy Expenditure,Corporate Services - Commercial & Operations,Deloitte LLP,364849,39667.00,EU Exit: Commercial ADM-Consultancy Expenditure,MK9 1FD,VENDOR
"Department for Business, Energy and Industrial Strategy","Department for Business, Energy and Industrial Strategy",16/10/2020,Consultancy Expenditure,Corporate Services - Commercial & Operations,Deloitte LLP,364850,42070.00,EU Exit: Commercial ADM-Consultancy Expenditure,MK9 1FD,VENDOR
"Department for Business, Energy and Industrial Strategy","Department for Business, Energy and Industrial Strategy",19/10/2020,Consultancy Expenditure,Corporate Services - Commercial & Operations,PA Consulting Services Ltd,365135,238860.00,EU Exit: Commercial ADM-Consultancy Expenditure,SG8 6DP,VENDOR
"Department for Business, Energy and Industrial Strategy","Department for Business, Energy and Industrial Strategy",06/10/2020,Marketing and Media,Corporate Services - Communications,KANTAR UK LTD,363013,28750.00,EU Exit: CPG ADM-Marketing and Media,W5 1UA,VENDOR
"Department for Business, Energy and Industrial Strategy","Department for Business, Energy and Industrial Strategy",01/10/2020,Marketing and Media,Corporate Services - Communications,Omnicom Media Group UK Ltd T/A Manning Gottlieb OMD,363055,-15294.11,EU Exit: CPG ADM-Marketing and Media,SE1 0SW,VENDOR
"Department for Business, Energy and Industrial Strategy","Department for Business, Energy and Industrial Strategy",01/10/2020,Marketing and Media,Corporate Services - Communications,Omnicom Media Group UK Ltd T/A Manning Gottlieb OMD,363055,-15.14,EU Exit: CPG ADM-Marketing and Media,SE1 0SW,VENDOR
"Department for Business, Energy and Industrial Strategy","Department for Business, Energy and Industrial Strategy",01/10/2020,Marketing and Media,Corporate Services - Communications,Omnicom Media Group UK Ltd T/A Manning Gottlieb OMD,363062,-27022.20,EU Exit: CPG ADM-Marketing and Media,SE1 0SW,VENDOR
"Department for Business, Energy and Industrial Strategy","Department for Business, Energy and Industrial Strategy",01/10/2020,Marketing and Media,Corporate Services - Communications,Omnicom Media Group UK Ltd T/A Manning Gottlieb OMD,363062,-26.75,EU Exit: CPG ADM-Marketing and Media,SE1 0SW,VENDOR
"Department for Business, Energy and Industrial Strategy","Department for Business, Energy and Industrial Strategy",20/10/2020,Marketing and Media,Corporate Services - Communications,KANTAR UK LTD,364674,28750.00,EU Exit: CPG ADM-Marketing and Media,W5 1UA,VENDOR
"Department for Business, Energy and Industrial Strategy","Department for Business, Energy and Industrial Strategy",20/10/2020,Marketing and Media,Corporate Services - Communications,KANTAR UK LTD,365052,28750.00,EU Exit: CPG ADM-Marketing and Media,W5 1UA,VENDOR
"Department for Business, Energy and Industrial Strategy","Department for Business, Energy and Industrial Strategy",06/10/2020,Hire of Interim Managers,"Corporate Services - Digital, Data & Technology",Allen Lane Ltd,333976,3740.82,EU Exit: Digital ADM-Hire of Interim Managers,SW1Y 5JH,VENDOR
"Department for Business, Energy and Industrial Strategy","Department for Business, Energy and Industrial Strategy",01/10/2020,Hire of Interim Managers,"Corporate Services - Digital, Data & Technology",Alexander Mann Solutions Ltd,362603,-6775.32,EU Exit: Digital ADM-Hire of Interim Managers,EC2N 3AQ,VENDOR
"Department for Business, Energy and Industrial Strategy","Department for Business, Energy and Industrial Strategy",01/10/2020,Hire of Interim Managers,"Corporate Services - Digital, Data & Technology",Alexander Mann Solutions Ltd,362603,12873.11,EU Exit: Digital ADM-Hire of Interim Managers,EC2N 3AQ,VENDOR
"Department for Business, Energy and Industrial Strategy","Department for Business, Energy and Industrial Strategy",02/10/2020,Hire of Interim Managers,"Corporate Services - Digital, Data & Technology",Alexander Mann Solutions Ltd,362604,3237.06,EU Exit: Digital ADM-Hire of Interim Managers,EC2N 3AQ,VENDOR
"Department for Business, Energy and Industrial Strategy","Department for Business, Energy and Industrial Strategy",06/10/2020,Hire of Interim Managers,"Corporate Services - Digital, Data & Technology",Alexander Mann Solutions Ltd,363308,3387.66,EU Exit: Digital ADM-Hire of Interim Managers,EC2N 3AQ,VENDOR
"Department for Business, Energy and Industrial Strategy","Department for Business, Energy and Industrial Strategy",07/10/2020,Hire of Interim Managers,"Corporate Services - Digital, Data & Technology",Alexander Mann Solutions Ltd,363310,-2697.64,EU Exit: Digital ADM-Hire of Interim Managers,EC2N 3AQ,VENDOR
"Department for Business, Energy and Industrial Strategy","Department for Business, Energy and Industrial Strategy",07/10/2020,Hire of Interim Managers,"Corporate Services - Digital, Data & Technology",Alexander Mann Solutions Ltd,363310,5934.70,EU Exit: Digital ADM-Hire of Interim Managers,EC2N 3AQ,VENDOR
"Department for Business, Energy and Industrial Strategy","Department for Business, Energy and Industrial Strategy",06/10/2020,Hire of Interim Managers,"Corporate Services - Digital, Data & Technology",Alexander Mann Solutions Ltd,363315,3141.24,EU Exit: Digital ADM-Hire of Interim Managers,EC2N 3AQ,VENDOR
"Department for Business, Energy and Industrial Strategy","Department for Business, Energy and Industrial Strategy",06/10/2020,Hire of Interim Managers,"Corporate Services - Digital, Data & Technology",Allen Lane Ltd,363600,3740.82,EU Exit: Digital ADM-Hire of Interim Managers,SW1Y 5JH,VENDOR
"Department for Business, Energy and Industrial Strategy","Department for Business, Energy and Industrial Strategy",06/10/2020,Hire of Interim Managers,"Corporate Services - Digital, Data & Technology",Allen Lane Ltd,363601,3740.82,EU Exit: Digital ADM-Hire of Interim Managers,SW1Y 5JH,VENDOR
"Department for Business, Energy and Industrial Strategy","Department for Business, Energy and Industrial Strategy",06/10/2020,Hire of Interim Managers,"Corporate Services - Digital, Data & Technology",Allen Lane Ltd,363602,3740.82,EU Exit: Digital ADM-Hire of Interim Managers,SW1Y 5JH,VENDOR
"Department for Business, Energy and Industrial Strategy","Department for Business, Energy and Industrial Strategy",06/10/2020,Hire of Interim Managers,"Corporate Services - Digital, Data & Technology",Allen Lane Ltd,363603,3740.82,EU Exit: Digital ADM-Hire of Interim Managers,SW1Y 5JH,VENDOR
"Department for Business, Energy and Industrial Strategy","Department for Business, Energy and Industrial Strategy",06/10/2020,Hire of Interim Managers,"Corporate Services - Digital, Data & Technology",Allen Lane Ltd,363604,3740.82,EU Exit: Digital ADM-Hire of Interim Managers,SW1Y 5JH,VENDOR
"Department for Business, Energy and Industrial Strategy","Department for Business, Energy and Industrial Strategy",06/10/2020,Hire of Interim Managers,"Corporate Services - Digital, Data & Technology",Allen Lane Ltd,363605,3740.82,EU Exit: Digital ADM-Hire of Interim Managers,SW1Y 5JH,VENDOR
"Department for Business, Energy and Industrial Strategy","Department for Business, Energy and Industrial Strategy",06/10/2020,Hire of Interim Managers,"Corporate Services - Digital, Data & Technology",Allen Lane Ltd,363606,3740.82,EU Exit: Digital ADM-Hire of Interim Managers,SW1Y 5JH,VENDOR
"Department for Business, Energy and Industrial Strategy","Department for Business, Energy and Industrial Strategy",06/10/2020,Hire of Interim Managers,"Corporate Services - Digital, Data & Technology",Allen Lane Ltd,363607,3740.82,EU Exit: Digital ADM-Hire of Interim Managers,SW1Y 5JH,VENDOR
"Department for Business, Energy and Industrial Strategy","Department for Business, Energy and Industrial Strategy",06/10/2020,Hire of Interim Managers,"Corporate Services - Digital, Data & Technology",Allen Lane Ltd,363608,3740.82,EU Exit: Digital ADM-Hire of Interim Managers,SW1Y 5JH,VENDOR
"Department for Business, Energy and Industrial Strategy","Department for Business, Energy and Industrial Strategy",06/10/2020,Hire of Interim Managers,"Corporate Services - Digital, Data & Technology",Allen Lane Ltd,363609,3740.82,EU Exit: Digital ADM-Hire of Interim Managers,SW1Y 5JH,VENDOR
"Department for Business, Energy and Industrial Strategy","Department for Business, Energy and Industrial Strategy",06/10/2020,Hire of Interim Managers,"Corporate Services - Digital, Data & Technology",Allen Lane Ltd,363611,3740.82,EU Exit: Digital ADM-Hire of Interim Managers,SW1Y 5JH,VENDOR
"Department for Business, Energy and Industrial Strategy","Department for Business, Energy and Industrial Strategy",06/10/2020,Hire of Interim Managers,"Corporate Services - Digital, Data & Technology",Allen Lane Ltd,363612,3740.82,EU Exit: Digital ADM-Hire of Interim Managers,SW1Y 5JH,VENDOR
"Department for Business, Energy and Industrial Strategy","Department for Business, Energy and Industrial Strategy",06/10/2020,Hire of Interim Managers,"Corporate Services - Digital, Data & Technology",Allen Lane Ltd,363613,3740.82,EU Exit: Digital ADM-Hire of Interim Managers,SW1Y 5JH,VENDOR
"Department for Business, Energy and Industrial Strategy","Department for Business, Energy and Industrial Strategy",06/10/2020,Hire of Interim Managers,"Corporate Services - Digital, Data & Technology",Allen Lane Ltd,363614,3740.82,EU Exit: Digital ADM-Hire of Interim Managers,SW1Y 5JH,VENDOR
"Department for Business, Energy and Industrial Strategy","Department for Business, Energy and Industrial Strategy",06/10/2020,Hire of Interim Managers,"Corporate Services - Digital, Data & Technology",Allen Lane Ltd,363615,3740.82,EU Exit: Digital ADM-Hire of Interim Managers,SW1Y 5JH,VENDOR
"Department for Business, Energy and Industrial Strategy","Department for Business, Energy and Industrial Strategy",06/10/2020,Hire of Interim Managers,"Corporate Services - Digital, Data & Technology",Allen Lane Ltd,363616,3740.82,EU Exit: Digital ADM-Hire of Interim Managers,SW1Y 5JH,VENDOR
"Department for Business, Energy and Industrial Strategy","Department for Business, Energy and Industrial Strategy",06/10/2020,Hire of Interim Managers,"Corporate Services - Digital, Data & Technology",Allen Lane Ltd,363617,3740.82,EU Exit: Digital ADM-Hire of Interim Managers,SW1Y 5JH,VENDOR
"Department for Business, Energy and Industrial Strategy","Department for Business, Energy and Industrial Strategy",06/10/2020,Hire of Interim Managers,"Corporate Services - Digital, Data & Technology",Allen Lane Ltd,363619,3740.82,EU Exit: Digital ADM-Hire of Interim Managers,SW1Y 5JH,VENDOR
"Department for Business, Energy and Industrial Strategy","Department for Business, Energy and Industrial Strategy",06/10/2020,Hire of Interim Managers,"Corporate Services - Digital, Data & Technology",Allen Lane Ltd,363622,11222.46,EU Exit: Digital ADM-Hire of Interim Managers,SW1Y 5JH,VENDOR
"Department for Business, Energy and Industrial Strategy","Department for Business, Energy and Industrial Strategy",06/10/2020,Hire of Interim Managers,"Corporate Services - Digital, Data & Technology",Allen Lane Ltd,363623,3740.82,EU Exit: Digital ADM-Hire of Interim Managers,SW1Y 5JH,VENDOR
"Department for Business, Energy and Industrial Strategy","Department for Business, Energy and Industrial Strategy",06/10/2020,Hire of Interim Managers,"Corporate Services - Digital, Data & Technology",Allen Lane Ltd,363624,14963.28,EU Exit: Digital ADM-Hire of Interim Managers,SW1Y 5JH,VENDOR
"Department for Business, Energy and Industrial Strategy","Department for Business, Energy and Industrial Strategy",06/10/2020,Hire of Interim Managers,"Corporate Services - Digital, Data & Technology",Allen Lane Ltd,363626,14963.28,EU Exit: Digital ADM-Hire of Interim Managers,SW1Y 5JH,VENDOR
"Department for Business, Energy and Industrial Strategy","Department for Business, Energy and Industrial Strategy",14/10/2020,Hire of Interim Managers,"Corporate Services - Digital, Data & Technology",Alexander Mann Solutions Ltd,364254,3510.80,EU Exit: Digital ADM-Hire of Interim Managers,EC2N 3AQ,VENDOR
"Department for Business, Energy and Industrial Strategy","Department for Business, Energy and Industrial Strategy",14/10/2020,Hire of Interim Managers,"Corporate Services - Digital, Data & Technology",Alexander Mann Solutions Ltd,364260,3237.06,EU Exit: Digital ADM-Hire of Interim Managers,EC2N 3AQ,VENDOR
"Department for Business, Energy and Industrial Strategy","Department for Business, Energy and Industrial Strategy",14/10/2020,Hire of Interim Managers,"Corporate Services - Digital, Data & Technology",Alexander Mann Solutions Ltd,364261,3849.54,EU Exit: Digital ADM-Hire of Interim Managers,EC2N 3AQ,VENDOR
"Department for Business, Energy and Industrial Strategy","Department for Business, Energy and Industrial Strategy",14/10/2020,Hire of Interim Managers,"Corporate Services - Digital, Data & Technology",Alexander Mann Solutions Ltd,364262,10358.59,EU Exit: Digital ADM-Hire of Interim Managers,EC2N 3AQ,VENDOR
"Department for Business, Energy and Industrial Strategy","Department for Business, Energy and Industrial Strategy",14/10/2020,Hire of Interim Managers,"Corporate Services - Digital, Data & Technology",Alexander Mann Solutions Ltd,364263,3387.66,EU Exit: Digital ADM-Hire of Interim Managers,EC2N 3AQ,VENDOR
"Department for Business, Energy and Industrial Strategy","Department for Business, Energy and Industrial Strategy",14/10/2020,Hire of Interim Managers,"Corporate Services - Digital, Data & Technology",Alexander Mann Solutions Ltd,364265,3884.47,EU Exit: Digital ADM-Hire of Interim Managers,EC2N 3AQ,VENDOR
"Department for Business, Energy and Industrial Strategy","Department for Business, Energy and Industrial Strategy",20/10/2020,Hire of Interim Managers,"Corporate Services - Digital, Data & Technology",Alexander Mann Solutions Ltd,365071,3141.24,EU Exit: Digital ADM-Hire of Interim Managers,EC2N 3AQ,VENDOR
"Department for Business, Energy and Industrial Strategy","Department for Business, Energy and Industrial Strategy",20/10/2020,Hire of Interim Managers,"Corporate Services - Digital, Data & Technology",Alexander Mann Solutions Ltd,365076,3237.06,EU Exit: Digital ADM-Hire of Interim Managers,EC2N 3AQ,VENDOR
"Department for Business, Energy and Industrial Strategy","Department for Business, Energy and Industrial Strategy",20/10/2020,Hire of Interim Managers,"Corporate Services - Digital, Data & Technology",Alexander Mann Solutions Ltd,365077,3849.54,EU Exit: Digital ADM-Hire of Interim Managers,EC2N 3AQ,VENDOR
"Department for Business, Energy and Industrial Strategy","Department for Business, Energy and Industrial Strategy",26/10/2020,Hire of Interim Managers,"Corporate Services - Digital, Data & Technology",Alexander Mann Solutions Ltd,365078,-2832.05,EU Exit: Digital ADM-Hire of Interim Managers,EC2N 3AQ,VENDOR
"Department for Business, Energy and Industrial Strategy","Department for Business, Energy and Industrial Strategy",26/10/2020,Hire of Interim Managers,"Corporate Services - Digital, Data & Technology",Alexander Mann Solutions Ltd,365078,6219.71,EU Exit: Digital ADM-Hire of Interim Managers,EC2N 3AQ,VENDOR
"Department for Business, Energy and Industrial Strategy","Department for Business, Energy and Industrial Strategy",27/10/2020,Hire of Interim Managers,"Corporate Services - Digital, Data & Technology",Alexander Mann Solutions Ltd,365818,3141.24,EU Exit: Digital ADM-Hire of Interim Managers,EC2N 3AQ,VENDOR
"Department for Business, Energy and Industrial Strategy","Department for Business, Energy and Industrial Strategy",27/10/2020,Hire of Interim Managers,"Corporate Services - Digital, Data & Technology",Alexander Mann Solutions Ltd,365828,3237.06,EU Exit: Digital ADM-Hire of Interim Managers,EC2N 3AQ,VENDOR
"Department for Business, Energy and Industrial Strategy","Department for Business, Energy and Industrial Strategy",27/10/2020,Hire of Interim Managers,"Corporate Services - Digital, Data & Technology",Alexander Mann Solutions Ltd,365830,3849.54,EU Exit: Digital ADM-Hire of Interim Managers,EC2N 3AQ,VENDOR
"Department for Business, Energy and Industrial Strategy","Department for Business, Energy and Industrial Strategy",26/10/2020,Hire of Interim Managers,"Corporate Services - Digital, Data & Technology",Alexander Mann Solutions Ltd,365834,3387.66,EU Exit: Digital ADM-Hire of Interim Managers,EC2N 3AQ,VENDOR
"Department for Business, Energy and Industrial Strategy","Department for Business, Energy and Industrial Strategy",27/10/2020,Hire of Interim Managers,"Corporate Services - Digital, Data & Technology",Alexander Mann Solutions Ltd,365839,6474.12,EU Exit: Digital ADM-Hire of Interim Managers,EC2N 3AQ,VENDOR
"Department for Business, Energy and Industrial Strategy","Department for Business, Energy and Industrial Strategy",08/10/2020,UKSBS - Service Costs,"Corporate Services - Digital, Data & Technology",UK Shared Business Services Limited,363877,94333.33,EU Exit: Digital ADM-UKSBS - Service Costs,SN2 1FF,VENDOR
"Department for Business, Energy and Industrial Strategy","Department for Business, Energy and Industrial Strategy",29/10/2020,Other Professional Services,Energy and Security - Nuclear Directorate - HSQ,Office for Nuclear Regulation,364905,569412.25,EU Exit: Euratrom PROG-Other Professional Services,FY1 9JN,VENDOR
"Department for Business, Energy and Industrial Strategy","Department for Business, Energy and Industrial Strategy",21/10/2020,Other Travel,Market Frameworks - Office for Product Safety and Standards,"Personal Expense, Name Withheld",365492,200.00,EU Exit: Finance and Portfolio ADM-Other Travel,,EMPLOYEE
"Department for Business, Energy and Industrial Strategy","Department for Business, Energy and Industrial Strategy",23/10/2020,R & D Project Management Costs,"Industrial Strategy, Science and Innovation - International Science and Innovation",Veracity OSI UK Ltd,365645,12750.00,EU Exit: Horizon Europe-R & D Project Management Costs,EC3R 8LJ,VENDOR
"Department for Business, Energy and Industrial Strategy","Department for Business, Energy and Industrial Strategy",14/10/2020,Training And Development Expenditure,Corporate Services - Human Resources,Professional Language Solutions Ltd,364546,702.15,EU Exit: HR ADM-Training And Development Expenditure,W6 0GY,VENDOR
"Department for Business, Energy and Industrial Strategy","Department for Business, Energy and Industrial Strategy",19/10/2020,Training And Development Expenditure,Corporate Services - Human Resources,KPMG LLP,364874,3817.00,EU Exit: HR ADM-Training And Development Expenditure,E14 5GL,VENDOR
"Department for Business, Energy and Industrial Strategy","Department for Business, Energy and Industrial Strategy",08/10/2020,Legal Services and Advice Agency,Corporate Services - Finance & Portfolio,GOWLING WLG (UK) LLP,363795,9504.00,EU Exit: Legal ADM-Legal Services and Advice Agency,B4 6WR,VENDOR
"Department for Business, Energy and Industrial Strategy","Department for Business, Energy and Industrial Strategy",21/10/2020,Legal Services and Advice Agency,Corporate Services - Finance & Portfolio,GOWLING WLG (UK) LLP,365321,8008.00,EU Exit: Legal ADM-Legal Services and Advice Agency,B4 6WR,VENDOR
"Department for Business, Energy and Industrial Strategy","Department for Business, Energy and Industrial Strategy",26/10/2020,Legal Services and Advice Agency,Corporate Services - Legal Services,Government Legal Department,365816,220000.00,EU Exit: Legal ADM-Legal Services and Advice Agency,WC2B 4TS,VENDOR
"Department for Business, Energy and Industrial Strategy","Department for Business, Energy and Industrial Strategy",26/10/2020,Legal Services and Advice Agency,Corporate Services - Legal Services,Government Legal Department,365816,1217500.00,EU Exit: Legal ADM-Legal Services and Advice Agency,WC2B 4TS,VENDOR
"Department for Business, Energy and Industrial Strategy","Department for Business, Energy and Industrial Strategy",27/10/2020,Legal Services and Advice Agency,Corporate Services - Finance & Portfolio,GOWLING WLG (UK) LLP,366005,13500.00,EU Exit: Legal ADM-Legal Services and Advice Agency,B4 6WR,VENDOR
"Department for Business, Energy and Industrial Strategy","Department for Business, Energy and Industrial Strategy",19/10/2020,Contractor Expenditure,Corporate Services - Human Resources,Allen Lane Ltd,364960,9747.50,EU Exit: No specific DExEU issue ADM-Contractor Expenditure,BN11 2BW,VENDOR
"Department for Business, Energy and Industrial Strategy","Department for Business, Energy and Industrial Strategy",19/10/2020,Contractor Expenditure,Corporate Services - Human Resources,Allen Lane Ltd,364961,6748.26,EU Exit: No specific DExEU issue ADM-Contractor Expenditure,BN11 2BW,VENDOR
"Department for Business, Energy and Industrial Strategy","Department for Business, Energy and Industrial Strategy",19/10/2020,Contractor Expenditure,Corporate Services - Human Resources,Allen Lane Ltd,364962,8997.69,EU Exit: No specific DExEU issue ADM-Contractor Expenditure,BN11 2BW,VENDOR
"Department for Business, Energy and Industrial Strategy","Department for Business, Energy and Industrial Strategy",20/10/2020,Contractor Expenditure,Corporate Services - Human Resources,Allen Lane Ltd,364963,11247.10,EU Exit: No specific DExEU issue ADM-Contractor Expenditure,BN11 2BW,VENDOR
"Department for Business, Energy and Industrial Strategy","Department for Business, Energy and Industrial Strategy",19/10/2020,Contractor Expenditure,Corporate Services - Human Resources,Allen Lane Ltd,364964,4498.85,EU Exit: No specific DExEU issue ADM-Contractor Expenditure,BN11 2BW,VENDOR
"Department for Business, Energy and Industrial Strategy","Department for Business, Energy and Industrial Strategy",05/10/2020,Hire of Interim Managers,Energy Transformation and Clean Growth - Industrial Energy,FDM Group Ltd,360645,-7000.00,EU Exit: No specific DExEU issue ADM-Hire of Interim Managers,SE1 2QG,VENDOR
"Department for Business, Energy and Industrial Strategy","Department for Business, Energy and Industrial Strategy",05/10/2020,Hire of Interim Managers,Energy Transformation and Clean Growth - Industrial Energy,FDM Group Ltd,360645,14000.00,EU Exit: No specific DExEU issue ADM-Hire of Interim Managers,SE1 2QG,VENDOR
"Department for Business, Energy and Industrial Strategy","Department for Business, Energy and Industrial Strategy",05/10/2020,Hire of Interim Managers,Energy Transformation and Clean Growth - Industrial Energy,FDM Group Ltd,360650,-8550.00,EU Exit: No specific DExEU issue ADM-Hire of Interim Managers,SE1 2QG,VENDOR
"Department for Business, Energy and Industrial Strategy","Department for Business, Energy and Industrial Strategy",05/10/2020,Hire of Interim Managers,Energy Transformation and Clean Growth - Industrial Energy,FDM Group Ltd,360650,17100.00,EU Exit: No specific DExEU issue ADM-Hire of Interim Managers,SE1 2QG,VENDOR
"Department for Business, Energy and Industrial Strategy","Department for Business, Energy and Industrial Strategy",05/10/2020,Hire of Interim Managers,Energy Transformation and Clean Growth - Industrial Energy,FDM Group Ltd,360651,-5400.00,EU Exit: No specific DExEU issue ADM-Hire of Interim Managers,SE1 2QG,VENDOR
"Department for Business, Energy and Industrial Strategy","Department for Business, Energy and Industrial Strategy",05/10/2020,Hire of Interim Managers,Energy Transformation and Clean Growth - Industrial Energy,FDM Group Ltd,360651,10800.00,EU Exit: No specific DExEU issue ADM-Hire of Interim Managers,SE1 2QG,VENDOR
"Department for Business, Energy and Industrial Strategy","Department for Business, Energy and Industrial Strategy",05/10/2020,Hire of Interim Managers,Energy Transformation and Clean Growth - Industrial Energy,FDM Group Ltd,360652,-9900.00,EU Exit: No specific DExEU issue ADM-Hire of Interim Managers,SE1 2QG,VENDOR
"Department for Business, Energy and Industrial Strategy","Department for Business, Energy and Industrial Strategy",05/10/2020,Hire of Interim Managers,Energy Transformation and Clean Growth - Industrial Energy,FDM Group Ltd,360652,19800.00,EU Exit: No specific DExEU issue ADM-Hire of Interim Managers,SE1 2QG,VENDOR
"Department for Business, Energy and Industrial Strategy","Department for Business, Energy and Industrial Strategy",05/10/2020,Hire of Interim Managers,Energy Transformation and Clean Growth - Industrial Energy,FDM Group Ltd,360653,-8550.00,EU Exit: No specific DExEU issue ADM-Hire of Interim Managers,SE1 2QG,VENDOR
"Department for Business, Energy and Industrial Strategy","Department for Business, Energy and Industrial Strategy",05/10/2020,Hire of Interim Managers,Energy Transformation and Clean Growth - Industrial Energy,FDM Group Ltd,360653,17100.00,EU Exit: No specific DExEU issue ADM-Hire of Interim Managers,SE1 2QG,VENDOR
"Department for Business, Energy and Industrial Strategy","Department for Business, Energy and Industrial Strategy",09/10/2020,Hire of Interim Managers,Energy Transformation and Clean Growth - Industrial Energy,FDM Group Ltd,363929,4900.00,EU Exit: No specific DExEU issue ADM-Hire of Interim Managers,SE1 2QG,VENDOR
"Department for Business, Energy and Industrial Strategy","Department for Business, Energy and Industrial Strategy",09/10/2020,Hire of Interim Managers,Energy Transformation and Clean Growth - Industrial Energy,FDM Group Ltd,363934,9943.62,EU Exit: No specific DExEU issue ADM-Hire of Interim Managers,SE1 2QG,VENDOR
"Department for Business, Energy and Industrial Strategy","Department for Business, Energy and Industrial Strategy",09/10/2020,Hire of Interim Managers,Energy Transformation and Clean Growth - Industrial Energy,FDM Group Ltd,363936,12100.00,EU Exit: No specific DExEU issue ADM-Hire of Interim Managers,SE1 2QG,VENDOR
"Department for Business, Energy and Industrial Strategy","Department for Business, Energy and Industrial Strategy",09/10/2020,Hire of Interim Managers,Energy Transformation and Clean Growth - Industrial Energy,FDM Group Ltd,363937,9900.00,EU Exit: No specific DExEU issue ADM-Hire of Interim Managers,SE1 2QG,VENDOR
"Department for Business, Energy and Industrial Strategy","Department for Business, Energy and Industrial Strategy",16/10/2020,Hire of Interim Managers,Energy Transformation and Clean Growth - Industrial Energy,FDM Group Ltd,364690,12650.00,EU Exit: No specific DExEU issue ADM-Hire of Interim Managers,SE1 2QG,VENDOR
"Department for Business, Energy and Industrial Strategy","Department for Business, Energy and Industrial Strategy",19/10/2020,Learning and Dev - CS Skills,Corporate Services - Human Resources,KPMG LLP,364859,2876.00,EU Exit: No specific DExEU issue ADM-Learning and Dev - CS Skills,E14 5GL,VENDOR
"Department for Business, Energy and Industrial Strategy","Department for Business, Energy and Industrial Strategy",28/10/2020,Learning and Dev - CS Skills,Corporate Services - Human Resources,Headspace Inc,366174,9240.00,EU Exit: No specific DExEU issue ADM-Learning and Dev - CS Skills,CA 90404,VENDOR
"Department for Business, Energy and Industrial Strategy","Department for Business, Energy and Industrial Strategy",19/10/2020,Current Grants To Private Sector - NPISH,Market Frameworks - Consumer and Competition Policy,CITIZENS ADVICE BUREAU,364704,209167.00,EU Exit: No specific DExEU issue PROG-Current Grants To Private Sector - NPISH,N1 9LZ,GRANT
"Department for Business, Energy and Industrial Strategy","Department for Business, Energy and Industrial Strategy",26/10/2020,Current Grants To Private Sector - NPISH,Market Frameworks - Consumer and Competition Policy,SCOTTISH ASSOCIATION CITIZENS ADVICE BUREAUX,365527,33333.00,EU Exit: No specific DExEU issue PROG-Current Grants To Private Sector - NPISH,EH7 4GB,VENDOR
"Department for Business, Energy and Industrial Strategy","Department for Business, Energy and Industrial Strategy",05/10/2020,PR & Marketing Advice & Services,Market Frameworks - Regulation Executive,Ministry Of Justice,362293,10296.00,EU Exit: No specific DExEU issue PROG-PR & Marketing Advice & Services,SW1H 9EA,WGA ONLY
"Department for Business, Energy and Industrial Strategy","Department for Business, Energy and Industrial Strategy",28/10/2020,Stationery,"Energy and Security - Energy Security, Networks and Markets","Personal Expense, Name Withheld",366194,249.36,EU Exit: Operation of SEM ADM-Stationery,,EMPLOYEE
"Department for Business, Energy and Industrial Strategy","Department for Business, Energy and Industrial Strategy",07/10/2020,R & D External Legal Advice and Services,"Industrial Strategy, Science and Innovation - International Science and Innovation",Dentons UK and Middle East LLP,363621,5216.90,EU Exit: Research Infrastructures-R & D External Legal Advice and Services,EC4M 7WS,VENDOR
"Department for Business, Energy and Industrial Strategy","Department for Business, Energy and Industrial Strategy",21/10/2020,Marketing and Media,Business Sectors - Business Intelligence and Readiness,KANTAR UK LTD,364669,6666.67,EU Exit:Busines Readiness-Marketing and Media,W5 1UA,VENDOR
"Department for Business, Energy and Industrial Strategy","Department for Business, Energy and Industrial Strategy",21/10/2020,Marketing and Media,Corporate Services - Communications,KANTAR UK LTD,364669,38458.33,EU Exit:Busines Readiness-Marketing and Media,W5 1UA,VENDOR
"Department for Business, Energy and Industrial Strategy","Department for Business, Energy and Industrial Strategy",22/10/2020,Hotel & Accommodation Overseas,"Trade, Europe and Analysis - Economic Partnerships Directorate",Unspecified,364894,1685.07,EU Expertise: General Costs-Hotel & Accommodation Overseas,,EMPLOYEE
"Department for Business, Energy and Industrial Strategy","Department for Business, Energy and Industrial Strategy",28/10/2020,Moving/Storage Costs,"Trade, Europe and Analysis - Economic Partnerships Directorate",PICKFORDS MOVE MANAGEMENT LTD,366114,1255.00,EU Expertise: General Costs-Moving/Storage Costs,NW10 0TG,VENDOR
"Department for Business, Energy and Industrial Strategy","Department for Business, Energy and Industrial Strategy",07/10/2020,Other Relocation Costs,"Trade, Europe and Analysis - Economic Partnerships Directorate","Foreign, Commonwealth and Development Office",361025,229.17,EU Expertise: General Costs-Other Relocation Costs,MK10 1PX,WGA ONLY
"Department for Business, Energy and Industrial Strategy","Department for Business, Energy and Industrial Strategy",07/10/2020,Other Relocation Costs,"Trade, Europe and Analysis - Economic Partnerships Directorate","Foreign, Commonwealth and Development Office",361026,297.92,EU Expertise: General Costs-Other Relocation Costs,MK10 1PX,WGA ONLY
"Department for Business, Energy and Industrial Strategy","Department for Business, Energy and Industrial Strategy",07/10/2020,Other Relocation Costs,"Trade, Europe and Analysis - Economic Partnerships Directorate","Foreign, Commonwealth and Development Office",361027,320.84,EU Expertise: General Costs-Other Relocation Costs,MK10 1PX,WGA ONLY
"Department for Business, Energy and Industrial Strategy","Department for Business, Energy and Industrial Strategy",07/10/2020,Other Relocation Costs,"Trade, Europe and Analysis - Economic Partnerships Directorate","Foreign, Commonwealth and Development Office",361028,1443.76,EU Expertise: General Costs-Other Relocation Costs,MK10 1PX,WGA ONLY
"Department for Business, Energy and Industrial Strategy","Department for Business, Energy and Industrial Strategy",07/10/2020,Other Relocation Costs,"Trade, Europe and Analysis - Economic Partnerships Directorate","Foreign, Commonwealth and Development Office",361029,1443.76,EU Expertise: General Costs-Other Relocation Costs,MK10 1PX,WGA ONLY
"Department for Business, Energy and Industrial Strategy","Department for Business, Energy and Industrial Strategy",07/10/2020,Other Relocation Costs,"Trade, Europe and Analysis - Economic Partnerships Directorate","Foreign, Commonwealth and Development Office",361030,1489.60,EU Expertise: General Costs-Other Relocation Costs,MK10 1PX,WGA ONLY
"Department for Business, Energy and Industrial Strategy","Department for Business, Energy and Industrial Strategy",07/10/2020,Other Relocation Costs,"Trade, Europe and Analysis - Economic Partnerships Directorate","Foreign, Commonwealth and Development Office",361031,17.77,EU Expertise: General Costs-Other Relocation Costs,MK10 1PX,WGA ONLY
"Department for Business, Energy and Industrial Strategy","Department for Business, Energy and Industrial Strategy",22/10/2020,Clearing - Cost - Assets Under Construction - Internally Developed Software,Market Frameworks - Office for Product Safety and Standards,AdRoc Ltd,365217,9450.00,EU Markets Surveillance-Clearing - Cost - Assets Under Construction - Internally Developed Software,EC2N 1HN,VENDOR
"Department for Business, Energy and Industrial Strategy","Department for Business, Energy and Industrial Strategy",22/10/2020,Clearing - Cost - Assets Under Construction - Internally Developed Software,Market Frameworks - Office for Product Safety and Standards,AdRoc Ltd,365219,21600.00,EU Markets Surveillance-Clearing - Cost - Assets Under Construction - Internally Developed Software,EC2N 1HN,VENDOR
"Department for Business, Energy and Industrial Strategy","Department for Business, Energy and Industrial Strategy",22/10/2020,Clearing - Cost - Assets Under Construction - Internally Developed Software,Market Frameworks - Office for Product Safety and Standards,AdRoc Ltd,365220,17100.00,EU Markets Surveillance-Clearing - Cost - Assets Under Construction - Internally Developed Software,EC2N 1HN,VENDOR
"Department for Business, Energy and Industrial Strategy","Department for Business, Energy and Industrial Strategy",26/10/2020,Clearing - Cost - Assets Under Construction - Internally Developed Software,Market Frameworks - Office for Product Safety and Standards,AdRoc Ltd,365221,24480.00,EU Markets Surveillance-Clearing - Cost - Assets Under Construction - Internally Developed Software,EC2N 1HN,VENDOR
"Department for Business, Energy and Industrial Strategy","Department for Business, Energy and Industrial Strategy",09/10/2020,Clearing Account   - Cost - Information Technology,Market Frameworks - Office for Product Safety and Standards,Investigo Ltd,363469,6600.00,EU Markets Surveillance-Clearing Account   - Cost - Information Technology,EC2M 2QS,VENDOR
"Department for Business, Energy and Industrial Strategy","Department for Business, Energy and Industrial Strategy",12/10/2020,Clearing Account   - Cost - Information Technology,Market Frameworks - Office for Product Safety and Standards,Hitachi Solutions Europe Ltd,364213,19056.00,EU Markets Surveillance-Clearing Account   - Cost - Information Technology,EC2N 1HQ,VENDOR
"Department for Business, Energy and Industrial Strategy","Department for Business, Energy and Industrial Strategy",12/10/2020,Clearing Account   - Cost - Information Technology,Market Frameworks - Office for Product Safety and Standards,Hitachi Solutions Europe Ltd,364214,19056.00,EU Markets Surveillance-Clearing Account   - Cost - Information Technology,EC2N 1HQ,VENDOR
"Department for Business, Energy and Industrial Strategy","Department for Business, Energy and Industrial Strategy",12/10/2020,Clearing Account   - Cost - Information Technology,Market Frameworks - Office for Product Safety and Standards,Hitachi Solutions Europe Ltd,364216,3948.00,EU Markets Surveillance-Clearing Account   - Cost - Information Technology,EC2N 1HQ,VENDOR
"Department for Business, Energy and Industrial Strategy","Department for Business, Energy and Industrial Strategy",27/10/2020,Clearing Account   - Cost - Information Technology,Market Frameworks - Office for Product Safety and Standards,Investigo Ltd,364551,3300.00,EU Markets Surveillance-Clearing Account   - Cost - Information Technology,EC2M 2QS,VENDOR
"Department for Business, Energy and Industrial Strategy","Department for Business, Energy and Industrial Strategy",27/10/2020,Clearing Account   - Cost - Information Technology,Market Frameworks - Office for Product Safety and Standards,Investigo Ltd,365149,3300.00,EU Markets Surveillance-Clearing Account   - Cost - Information Technology,EC2M 2QS,VENDOR
"Department for Business, Energy and Industrial Strategy","Department for Business, Energy and Industrial Strategy",23/10/2020,Clearing Account   - Cost - Information Technology,Market Frameworks - Office for Product Safety and Standards,Nash Technologies and Consulting Ltd,365662,14300.00,EU Markets Surveillance-Clearing Account   - Cost - Information Technology,B28 9LL,VENDOR
"Department for Business, Energy and Industrial Strategy","Department for Business, Energy and Industrial Strategy",27/10/2020,Clearing Account   - Cost - Information Technology,Market Frameworks - Office for Product Safety and Standards,Investigo Ltd,365800,3300.00,EU Markets Surveillance-Clearing Account   - Cost - Information Technology,EC2M 2QS,VENDOR
"Department for Business, Energy and Industrial Strategy","Department for Business, Energy and Industrial Strategy",28/10/2020,Clearing Account   - Cost - Information Technology,Market Frameworks - Office for Product Safety and Standards,Experis Ltd,366240,22500.00,EU Markets Surveillance-Clearing Account   - Cost - Information Technology,WA14 1JY,VENDOR
"Department for Business, Energy and Industrial Strategy","Department for Business, Energy and Industrial Strategy",13/10/2020,R & D Current Grants to Private Sector - NPISH,BI Regional Growth Fund - BI Regional Growth Fund,UCB Pharma SA T/A UCB Celltech,364407,1000000.00,Exceptional Regional Growth Fund (eRGF)-R & D Current Grants to Private Sector - NPISH,SL1 3WE,GRANT
"Department for Business, Energy and Industrial Strategy","Department for Business, Energy and Industrial Strategy",13/10/2020,R & D Current Grants to Private Sector - NPISH,BI Regional Growth Fund - BI Regional Growth Fund,UCB Pharma SA T/A UCB Celltech,364408,1500000.00,Exceptional Regional Growth Fund (eRGF)-R & D Current Grants to Private Sector - NPISH,SL1 3WE,GRANT
"Department for Business, Energy and Industrial Strategy","Department for Business, Energy and Industrial Strategy",14/10/2020,Central Telecommunications Services,"Corporate Services - Digital, Data & Technology",DAISY COMMUNICATIONS LTD,362741,-233.84,FCS Devolved Admin-Central Telecommunications Services,BB9 5SR,VENDOR
"Department for Business, Energy and Industrial Strategy","Department for Business, Energy and Industrial Strategy",06/10/2020,Clearing - Cost - Assets Under Construction - Internally Developed Software,Corporate Services - Finance & Portfolio,Alexander Mann Solutions Ltd,363313,8561.40,Finance Infrastructure and Maintenance-Clearing - Cost - Assets Under Construction - Internally Developed Software,EC2N 3AQ,VENDOR
"Department for Business, Energy and Industrial Strategy","Department for Business, Energy and Industrial Strategy",26/10/2020,Clearing - Cost - Assets Under Construction - Internally Developed Software,Corporate Services - Finance & Portfolio,Alexander Mann Solutions Ltd,365817,8561.40,Finance Infrastructure and Maintenance-Clearing - Cost - Assets Under Construction - Internally Developed Software,EC2N 3AQ,VENDOR
"Department for Business, Energy and Industrial Strategy","Department for Business, Energy and Industrial Strategy",30/10/2020,Accommodation & Building Management,Corporate Services - Commercial & Operations,Government Property Agency,366025,247001.57,Fleetbank House-Accommodation & Building Management,B2 5LS,VENDOR
"Department for Business, Energy and Industrial Strategy","Department for Business, Energy and Industrial Strategy",30/10/2020,Accommodation & Building Management,Corporate Services - Commercial & Operations,Government Property Agency,366026,82225.25,Fleetbank House-Accommodation & Building Management,B2 5LS,VENDOR
"Department for Business, Energy and Industrial Strategy","Department for Business, Energy and Industrial Strategy",14/10/2020,EXP - Miscellaneous Expenditure - iExpenses,"Industrial Strategy, Science and Innovation - Government Office for Science","Personal Expense, Name Withheld",364631,65.99,Foresight: Council of Science and Technology-EXP - Miscellaneous Expenditure - iExpenses,,EMPLOYEE
"Department for Business, Energy and Industrial Strategy","Department for Business, Energy and Industrial Strategy",20/10/2020,R & D Outsourced Other,"Industrial Strategy, Science and Innovation - Government Office for Science",Alexander Mann Solutions Ltd,365010,342.60,Foresight: Horizon Scanning-R & D Outsourced Other,EC2N 3AQ,VENDOR
"Department for Business, Energy and Industrial Strategy","Department for Business, Energy and Industrial Strategy",21/10/2020,R & D PPM (Project and Programme Management),"Industrial Strategy, Science and Innovation - Government Office for Science",SCHOOL OF INTERNATIONAL FUTURES LTD,365280,8070.25,Foresight: Horizon Scanning-R & D PPM (Project and Programme Management),NW1 4AB,VENDOR
"Department for Business, Energy and Industrial Strategy","Department for Business, Energy and Industrial Strategy",28/10/2020,R & D PPM (Project and Programme Management),"Industrial Strategy, Science and Innovation - Government Office for Science",SCHOOL OF INTERNATIONAL FUTURES LTD,366115,11298.35,Foresight: Horizon Scanning-R & D PPM (Project and Programme Management),NW1 4AB,VENDOR
"Department for Business, Energy and Industrial Strategy","Department for Business, Energy and Industrial Strategy",19/10/2020,R & D Strategy Consultancy,"Industrial Strategy, Science and Innovation - International Science and Innovation",THE DEXTROUS WEB LTD T/A DXW,364981,40862.50,GCRF - Transformation Project - ODA Reporting Tool (ODART)-R & D Strategy Consultancy,N1 6NU,VENDOR
"Department for Business, Energy and Industrial Strategy","Department for Business, Energy and Industrial Strategy",30/10/2020,R & D Strategy Consultancy,"Industrial Strategy, Science and Innovation - International Science and Innovation",THE DEXTROUS WEB LTD T/A DXW,366543,34675.00,GCRF - Transformation Project - ODA Reporting Tool (ODART)-R & D Strategy Consultancy,N1 6NU,VENDOR
"Department for Business, Energy and Industrial Strategy","Department for Business, Energy and Industrial Strategy",05/10/2020,R & D Current Grants to Private Sector - NPISH,"Industrial Strategy, Science and Innovation - International Science and Innovation",UNIVERSITIES UK,363407,21458.00,GCRF - UUKi Delivery Support-R & D Current Grants to Private Sector - NPISH,WC1H 9HQ,GRANT
"Department for Business, Energy and Industrial Strategy","Department for Business, Energy and Industrial Strategy",28/10/2020,External Legal Advice and Service,Energy Transformation and Clean Growth - Energy Efficiency and Local,Government Legal Department,366152,2009.38,GGC Data Collection and Reporting Contract-External Legal Advice and Service,SW1H 9GL,VENDOR
"Department for Business, Energy and Industrial Strategy","Department for Business, Energy and Industrial Strategy",14/10/2020,Technical Advice / Services & Support,Energy Transformation and Clean Growth - Energy Efficiency and Local,BUILDING RESEARCH ESTABLISHMENT LTD (BRE),353457,6794.00,GGC Data Collection and Reporting Contract-Technical Advice / Services & Support,WD25 9XX,VENDOR
"Department for Business, Energy and Industrial Strategy","Department for Business, Energy and Industrial Strategy",29/10/2020,Outsourced Programme Management,Energy Transformation and Clean Growth - Energy Efficiency and Local,BUILDING RESEARCH ESTABLISHMENT LTD (BRE),365600,3197.80,Green Deal - Products and Measures-Outsourced Programme Management,WD25 9XX,VENDOR
"Department for Business, Energy and Industrial Strategy","Department for Business, Energy and Industrial Strategy",01/10/2020,Purchase of Intangible Software,Energy Transformation and Clean Growth - Energy Efficiency and Local,NORTHGATE PUBLIC SERVICES (UK) LTD,362975,13168.75,Green Deal and PRS IT Delivery-Purchase of Intangible Software,HP2 4NW,VENDOR
"Department for Business, Energy and Industrial Strategy","Department for Business, Energy and Industrial Strategy",07/10/2020,Purchase of Intangible Software,Energy Transformation and Clean Growth - Energy Efficiency and Local,NORTHGATE PUBLIC SERVICES (UK) LTD,363771,11683.25,Green Deal and PRS IT Delivery-Purchase of Intangible Software,HP2 4NW,VENDOR
"Department for Business, Energy and Industrial Strategy","Department for Business, Energy and Industrial Strategy",06/10/2020,Other Professional Services,Energy Transformation and Clean Growth - Energy Efficiency and Local,THE OMBUDSMAN SERVICE LTD,363580,550.00,Green Deal Ombudsman-Other Professional Services,WA4 4HS,VENDOR
"Department for Business, Energy and Industrial Strategy","Department for Business, Energy and Industrial Strategy",28/10/2020,Other Professional Services,Energy Transformation and Clean Growth - Energy Efficiency and Local,RESEARCH SYSTEMS LTD,366104,145.00,Green Deal Ombudsman-Other Professional Services,SS9 5PR,VENDOR
"Department for Business, Energy and Industrial Strategy","Department for Business, Energy and Industrial Strategy",09/10/2020,Outsourced Programme Management,Energy Transformation and Clean Growth - Energy Efficiency and Local,Gemserv Limited,364099,35064.00,Green Deal Oversight and Registration Body-Outsourced Programme Management,EC3M 4AJ,VENDOR
"Department for Business, Energy and Industrial Strategy","Department for Business, Energy and Industrial Strategy",09/10/2020,Outsourced Programme Management,Energy Transformation and Clean Growth - Energy Efficiency and Local,Gemserv Limited,364100,22745.00,Green Deal Oversight and Registration Body-Outsourced Programme Management,EC3M 4AJ,VENDOR
"Department for Business, Energy and Industrial Strategy","Department for Business, Energy and Industrial Strategy",23/10/2020,Outsourced Programme Management,Energy Transformation and Clean Growth - Energy Efficiency and Local,Gemserv Limited,365642,22218.00,Green Deal Oversight and Registration Body-Outsourced Programme Management,EC3M 4AJ,VENDOR
"Department for Business, Energy and Industrial Strategy","Department for Business, Energy and Industrial Strategy",27/10/2020,Capital Grants To Local Government,Energy Transformation and Clean Growth - Energy Efficiency and Local,Woking Borough Council,366131,3133733.50,Green Homes Grant - Local Authority Delivery (LAD)-Capital Grants To Local Government,GU21 6YL,GRANT
"Department for Business, Energy and Industrial Strategy","Department for Business, Energy and Industrial Strategy",27/10/2020,Capital Grants To Local Government,Energy Transformation and Clean Growth - Energy Efficiency and Local,GREATER MANCHESTER COMBINED AUTHORITY,366132,2343750.50,Green Homes Grant - Local Authority Delivery (LAD)-Capital Grants To Local Government,M1 6EU,WGA ONLY
"Department for Business, Energy and Industrial Strategy","Department for Business, Energy and Industrial Strategy",27/10/2020,Capital Grants To Local Government,Energy Transformation and Clean Growth - Energy Efficiency and Local,Hastings Borough Council,366134,456357.00,Green Homes Grant - Local Authority Delivery (LAD)-Capital Grants To Local Government,TN34 3UY,GRANT
"Department for Business, Energy and Industrial Strategy","Department for Business, Energy and Industrial Strategy",26/10/2020,Capital Grants To Private Sector - Persons & NPISH,Energy Transformation and Clean Growth - Energy Efficiency and Local,Wychavon District Council,365188,1043275.00,Green Homes Grant - Local Authority Delivery (LAD)-Capital Grants To Private Sector - Persons & NPISH,WR10 1PT,GRANT
"Department for Business, Energy and Industrial Strategy","Department for Business, Energy and Industrial Strategy",20/10/2020,Capital Grants To Private Sector - Persons & NPISH,Energy Transformation and Clean Growth - Energy Efficiency and Local,Eden District Council,365190,256501.50,Green Homes Grant - Local Authority Delivery (LAD)-Capital Grants To Private Sector - Persons & NPISH,CA11 7QF,WGA ONLY
"Department for Business, Energy and Industrial Strategy","Department for Business, Energy and Industrial Strategy",20/10/2020,Capital Grants To Private Sector - Persons & NPISH,Energy Transformation and Clean Growth - Energy Efficiency and Local,Isle of Wight Council,365192,287500.00,Green Homes Grant - Local Authority Delivery (LAD)-Capital Grants To Private Sector - Persons & NPISH,PO30 1UD,GRANT
"Department for Business, Energy and Industrial Strategy","Department for Business, Energy and Industrial Strategy",21/10/2020,Capital Grants To Private Sector - Persons & NPISH,Energy Transformation and Clean Growth - Energy Efficiency and Local,Bracknell Forest Council,365460,450000.00,Green Homes Grant - Local Authority Delivery (LAD)-Capital Grants To Private Sector - Persons & NPISH,RG12 1JD,WGA ONLY
"Department for Business, Energy and Industrial Strategy","Department for Business, Energy and Industrial Strategy",21/10/2020,Capital Grants To Private Sector - Persons & NPISH,Energy Transformation and Clean Growth - Energy Efficiency and Local,West Devon Borough Council,365461,280625.00,Green Homes Grant - Local Authority Delivery (LAD)-Capital Grants To Private Sector - Persons & NPISH,PL19 0BZ,GRANT
"Department for Business, Energy and Industrial Strategy","Department for Business, Energy and Industrial Strategy",21/10/2020,Capital Grants To Private Sector - Persons & NPISH,Energy Transformation and Clean Growth - Energy Efficiency and Local,Derbyshire Dales District Council,365462,380475.00,Green Homes Grant - Local Authority Delivery (LAD)-Capital Grants To Private Sector - Persons & NPISH,DE4 3NN,GRANT
"Department for Business, Energy and Industrial Strategy","Department for Business, Energy and Industrial Strategy",21/10/2020,Capital Grants To Private Sector - Persons & NPISH,Energy Transformation and Clean Growth - Energy Efficiency and Local,Milton Keynes Council,365463,310458.50,Green Homes Grant - Local Authority Delivery (LAD)-Capital Grants To Private Sector - Persons & NPISH,MK9 3EJ,GRANT
"Department for Business, Energy and Industrial Strategy","Department for Business, Energy and Industrial Strategy",30/10/2020,Administration of Grants and Awards,Energy Transformation and Clean Growth - Energy Efficiency and Local,Risual Ltd,366236,-17100.00,Green Homes Grant Project-Administration of Grants and Awards,ST18 0WP,VENDOR
"Department for Business, Energy and Industrial Strategy","Department for Business, Energy and Industrial Strategy",30/10/2020,Administration of Grants and Awards,Energy Transformation and Clean Growth - Energy Efficiency and Local,Risual Ltd,366236,31350.00,Green Homes Grant Project-Administration of Grants and Awards,ST18 0WP,VENDOR
"Department for Business, Energy and Industrial Strategy","Department for Business, Energy and Industrial Strategy",14/10/2020,Other Professional Services,Energy Transformation and Clean Growth - Energy Efficiency and Local,GRANT THORNTON UK LLP,363249,20000.00,Green Homes Grant Project-Other Professional Services,NN4 7YE,VENDOR
"Department for Business, Energy and Industrial Strategy","Department for Business, Energy and Industrial Strategy",07/10/2020,Other Professional Services,Energy Transformation and Clean Growth - Energy Efficiency and Local,Alexander Mann Solutions Ltd,363402,4619.52,Green Homes Grant Project-Other Professional Services,EC2N 3AQ,VENDOR
"Department for Business, Energy and Industrial Strategy","Department for Business, Energy and Industrial Strategy",14/10/2020,Other Professional Services,Energy Transformation and Clean Growth - Energy Efficiency and Local,Alexander Mann Solutions Ltd,364302,4619.52,Green Homes Grant Project-Other Professional Services,EC2N 3AQ,VENDOR
"Department for Business, Energy and Industrial Strategy","Department for Business, Energy and Industrial Strategy",28/10/2020,Other Professional Services,Energy Transformation and Clean Growth - Energy Efficiency and Local,Alexander Mann Solutions Ltd,365038,4619.52,Green Homes Grant Project-Other Professional Services,EC2N 3AQ,VENDOR
"Department for Business, Energy and Industrial Strategy","Department for Business, Energy and Industrial Strategy",28/10/2020,Other Professional Services,Energy Transformation and Clean Growth - Energy Efficiency and Local,Alexander Mann Solutions Ltd,365892,4619.52,Green Homes Grant Project-Other Professional Services,EC2N 3AQ,VENDOR
"Department for Business, Energy and Industrial Strategy","Department for Business, Energy and Industrial Strategy",20/10/2020,Technical Advice / Services & Support,Energy Transformation and Clean Growth - Energy Efficiency and Local,ENGINE PARTNERS UK LLP (THE ENGINE GROUP),364553,49928.34,Green Homes Grant Project-Technical Advice / Services & Support,W1W 7RT,VENDOR
"Department for Business, Energy and Industrial Strategy","Department for Business, Energy and Industrial Strategy",23/10/2020,Technical Advice / Services & Support,Energy Transformation and Clean Growth - Energy Efficiency and Local,ENGINE PARTNERS UK LLP (THE ENGINE GROUP),365581,-10908.00,Green Homes Grant Project-Technical Advice / Services & Support,W1W 7RT,VENDOR
"Department for Business, Energy and Industrial Strategy","Department for Business, Energy and Industrial Strategy",23/10/2020,Technical Advice / Services & Support,Energy Transformation and Clean Growth - Energy Efficiency and Local,ENGINE PARTNERS UK LLP (THE ENGINE GROUP),365581,21816.00,Green Homes Grant Project-Technical Advice / Services & Support,W1W 7RT,VENDOR
"Department for Business, Energy and Industrial Strategy","Department for Business, Energy and Industrial Strategy",30/10/2020,Technical Advice / Services & Support,Energy Transformation and Clean Growth - Energy Efficiency and Local,ENGINE PARTNERS UK LLP (THE ENGINE GROUP),365806,-41351.90,Green Homes Grant Project-Technical Advice / Services & Support,W1W 7RT,VENDOR
"Department for Business, Energy and Industrial Strategy","Department for Business, Energy and Industrial Strategy",30/10/2020,Technical Advice / Services & Support,Energy Transformation and Clean Growth - Energy Efficiency and Local,ENGINE PARTNERS UK LLP (THE ENGINE GROUP),365806,82703.80,Green Homes Grant Project-Technical Advice / Services & Support,W1W 7RT,VENDOR
"Department for Business, Energy and Industrial Strategy","Department for Business, Energy and Industrial Strategy",19/10/2020,External Legal Advice and Service,Energy Transformation and Clean Growth - Energy Efficiency and Local,HENDERSON CHAMBERS,365146,585.00,Green Homes Grant Scheme - Legal Support-External Legal Advice and Service,EC4Y 9DB,GRANT
"Department for Business, Energy and Industrial Strategy","Department for Business, Energy and Industrial Strategy",29/10/2020,External Legal Advice and Service,Energy Transformation and Clean Growth - Energy Efficiency and Local,Government Legal Department,366073,2320.00,Green Homes Grant Scheme - Legal Support-External Legal Advice and Service,SW1H 9GL,VENDOR
"Department for Business, Energy and Industrial Strategy","Department for Business, Energy and Industrial Strategy",30/10/2020,External Legal Advice and Service,Energy Transformation and Clean Growth - Energy Efficiency and Local,HENDERSON CHAMBERS,366339,4027.50,Green Homes Grant Scheme - Legal Support-External Legal Advice and Service,EC4Y 9DB,GRANT
"Department for Business, Energy and Industrial Strategy","Department for Business, Energy and Industrial Strategy",16/10/2020,Current Grants To Local Government,Business Sectors - Cities and Local Growth,OXFORDSHIRE COUNTY COUNCIL,364853,29187.00,Growth Hubs-Current Grants To Local Government,OX1 1NE,WGA ONLY
"Department for Business, Energy and Industrial Strategy","Department for Business, Energy and Industrial Strategy",26/10/2020,Current Grants To Local Government,Business Sectors - Cities and Local Growth,Lancashire County Council,365735,82000.00,Growth Hubs-Current Grants To Local Government,PR1 0LD,WGA ONLY
"Department for Business, Energy and Industrial Strategy","Department for Business, Energy and Industrial Strategy",26/10/2020,Current Grants To Local Government,Business Sectors - Cities and Local Growth,Gloucestershire County Council,365741,43404.00,Growth Hubs-Current Grants To Local Government,GL1 2TL,WGA ONLY
"Department for Business, Energy and Industrial Strategy","Department for Business, Energy and Industrial Strategy",28/10/2020,Current Grants To Local Government,Business Sectors - Cities and Local Growth,CUMBRIA COUNTY COUNCIL,366148,58828.10,Growth Hubs-Current Grants To Local Government,CA3 8NA,WGA ONLY
"Department for Business, Energy and Industrial Strategy","Department for Business, Energy and Industrial Strategy",29/10/2020,Current Grants To Local Government,Business Sectors - Cities and Local Growth,Somerset County Council,366264,82000.00,Growth Hubs-Current Grants To Local Government,TA1 4DY,WGA ONLY
"Department for Business, Energy and Industrial Strategy","Department for Business, Energy and Industrial Strategy",29/10/2020,Current Grants To Local Government,Business Sectors - Cities and Local Growth,GREATER LONDON AUTHORITY,366292,79132.29,Growth Hubs-Current Grants To Local Government,SE1 2AA,WGA ONLY
"Department for Business, Energy and Industrial Strategy","Department for Business, Energy and Industrial Strategy",29/10/2020,Current Grants To Local Government,Business Sectors - Cities and Local Growth,West of England Combined Authority,366298,101142.45,Growth Hubs-Current Grants To Local Government,BS1 6QH,GRANT
"Department for Business, Energy and Industrial Strategy","Department for Business, Energy and Industrial Strategy",29/10/2020,Current Grants To Local Government,Business Sectors - Cities and Local Growth,Croydon Council,366302,89946.00,Growth Hubs-Current Grants To Local Government,CR0 1EA,GRANT
"Department for Business, Energy and Industrial Strategy","Department for Business, Energy and Industrial Strategy",29/10/2020,Current Grants To Local Government,Business Sectors - Cities and Local Growth,WEST YORKSHIRE COMBINED AUTHORITY,366304,123972.00,Growth Hubs-Current Grants To Local Government,LS1 2DE,WGA ONLY
"Department for Business, Energy and Industrial Strategy","Department for Business, Energy and Industrial Strategy",30/10/2020,Current Grants To Local Government,Business Sectors - Cities and Local Growth,Derbyshire County Council,366337,89146.00,Growth Hubs-Current Grants To Local Government,DE4 3AG,VENDOR
"Department for Business, Energy and Industrial Strategy","Department for Business, Energy and Industrial Strategy",30/10/2020,Current Grants To Local Government,Business Sectors - Cities and Local Growth,STAFFORDSHIRE COUNTY COUNCIL,366338,48851.25,Growth Hubs-Current Grants To Local Government,ST16 2DH,VENDOR
"Department for Business, Energy and Industrial Strategy","Department for Business, Energy and Industrial Strategy",30/10/2020,Current Grants To Local Government,Business Sectors - Cities and Local Growth,BIRMINGHAM CITY COUNCIL,366347,138019.37,Growth Hubs-Current Grants To Local Government,B7 4BL,WGA ONLY
"Department for Business, Energy and Industrial Strategy","Department for Business, Energy and Industrial Strategy",30/10/2020,Current Grants To Local Government,Business Sectors - Cities and Local Growth,Lincolnshire County Council,366348,73000.00,Growth Hubs-Current Grants To Local Government,LN1 1GJ,WGA ONLY
"Department for Business, Energy and Industrial Strategy","Department for Business, Energy and Industrial Strategy",30/10/2020,Current Grants To Local Government,Business Sectors - Cities and Local Growth,NORTH YORKSHIRE COUNTY COUNCIL,366353,60926.00,Growth Hubs-Current Grants To Local Government,DL7 8AH,WGA ONLY
"Department for Business, Energy and Industrial Strategy","Department for Business, Energy and Industrial Strategy",30/10/2020,Current Grants To Local Government,Business Sectors - Cities and Local Growth,WILTSHIRE COUNCIL,366496,99000.00,Growth Hubs-Current Grants To Local Government,BA14 8JD,WGA ONLY
"Department for Business, Energy and Industrial Strategy","Department for Business, Energy and Industrial Strategy",28/10/2020,R & D Current Grants to Private Sector - NPISH,"Industrial Strategy, Science and Innovation - International Science and Innovation",University of Liverpool,366127,5500.00,GSIE Gulf and Middle East and North Africa (MENA)-R & D Current Grants to Private Sector - NPISH,L69 3GH,VENDOR
"Department for Business, Energy and Industrial Strategy","Department for Business, Energy and Industrial Strategy",06/10/2020,R & D Research and Development Expenditure,"Industrial Strategy, Science and Innovation - International Science and Innovation",MET OFFICE,363246,1518333.33,Hadley Centre-R & D Research and Development Expenditure,EX1 3PB,WGA ONLY
"Department for Business, Energy and Industrial Strategy","Department for Business, Energy and Industrial Strategy",23/10/2020,Current Grants To Local Government,Energy Transformation and Clean Growth - Energy Efficiency and Local,Cornwall Council,363206,46150.00,Heat Network Delivery Unit-Current Grants To Local Government,TR1 3AY,WGA ONLY
"Department for Business, Energy and Industrial Strategy","Department for Business, Energy and Industrial Strategy",29/10/2020,Current Grants To Local Government,Energy Transformation and Clean Growth - Energy Efficiency and Local,Bromsgrove District Council,366248,227500.00,Heat Network Delivery Unit-Current Grants To Local Government,DY11 7WF,GRANT
"Department for Business, Energy and Industrial Strategy","Department for Business, Energy and Industrial Strategy",29/10/2020,Current Grants To Local Government,Energy Transformation and Clean Growth - Energy Efficiency and Local,ROYAL BOROUGH OF GREENWICH (LOTSA GREENWICH TRADING STANDARDS),366253,103150.00,Heat Network Delivery Unit-Current Grants To Local Government,SE18 6HQ,GRANT
"Department for Business, Energy and Industrial Strategy","Department for Business, Energy and Industrial Strategy",29/10/2020,Current Grants To Local Government,Energy Transformation and Clean Growth - Energy Efficiency and Local,Worthing Borough Council,366254,125000.00,Heat Network Delivery Unit-Current Grants To Local Government,BN11 1HA,GRANT
"Department for Business, Energy and Industrial Strategy","Department for Business, Energy and Industrial Strategy",14/10/2020,External Training,Energy Transformation and Clean Growth - Energy Efficiency and Local,"Personal Expense, Name Withheld",364635,125.00,Heat Network Delivery Unit-External Training,,EMPLOYEE
"Department for Business, Energy and Industrial Strategy","Department for Business, Energy and Industrial Strategy",14/10/2020,Mileage Allowance UK,Energy Transformation and Clean Growth - Energy Efficiency and Local,"Personal Expense, Name Withheld",364635,83.25,Heat Network Delivery Unit-Mileage Allowance UK,,EMPLOYEE
"Department for Business, Energy and Industrial Strategy","Department for Business, Energy and Industrial Strategy",13/10/2020,Capital Grants to Private Sector - Companies,Energy Transformation and Clean Growth - Energy Efficiency and Local,Triple Point Investment Management LLP,364360,570000.00,Heat Network Investment Project-Capital Grants to Private Sector - Companies,EC4N 7AF,VENDOR
"Department for Business, Energy and Industrial Strategy","Department for Business, Energy and Industrial Strategy",12/10/2020,Capital Grants to Private Sector - Companies,Energy Transformation and Clean Growth - Energy Efficiency and Local,Triple Point Investment Management LLP,364362,355000.00,Heat Network Investment Project-Capital Grants to Private Sector - Companies,EC4N 7AF,VENDOR
"Department for Business, Energy and Industrial Strategy","Department for Business, Energy and Industrial Strategy",28/10/2020,Capital Grants to Private Sector - Companies,Energy Transformation and Clean Growth - Energy Efficiency and Local,Triple Point Investment Management LLP,366135,2679000.00,Heat Network Investment Project-Capital Grants to Private Sector - Companies,EC4N 7AF,VENDOR
"Department for Business, Energy and Industrial Strategy","Department for Business, Energy and Industrial Strategy",15/10/2020,Outsourced Programme Management,Energy Transformation and Clean Growth - Energy Efficiency and Local,Greenfield Nordic Ltd,364667,9277.20,Heat Networks Programme costs-Outsourced Programme Management,S1 2BJ,VENDOR
"Department for Business, Energy and Industrial Strategy","Department for Business, Energy and Industrial Strategy",16/10/2020,Outsourced Programme Management,Energy Transformation and Clean Growth - Energy Efficiency and Local,Fair Heat Ltd,364839,11640.00,Heat Networks Programme costs-Outsourced Programme Management,SE1 9AD,VENDOR
"Department for Business, Energy and Industrial Strategy","Department for Business, Energy and Industrial Strategy",16/10/2020,Outsourced Programme Management,Energy Transformation and Clean Growth - Energy Efficiency and Local,Fair Heat Ltd,364841,1710.00,Heat Networks Programme costs-Outsourced Programme Management,SE1 9AD,VENDOR
"Department for Business, Energy and Industrial Strategy","Department for Business, Energy and Industrial Strategy",16/10/2020,Outsourced Programme Management,Energy Transformation and Clean Growth - Energy Efficiency and Local,Fair Heat Ltd,364842,1444.00,Heat Networks Programme costs-Outsourced Programme Management,SE1 9AD,VENDOR
"Department for Business, Energy and Industrial Strategy","Department for Business, Energy and Industrial Strategy",16/10/2020,Outsourced Programme Management,Energy Transformation and Clean Growth - Energy Efficiency and Local,Triple Point Investment Management LLP,364845,272798.33,Heat Networks Programme costs-Outsourced Programme Management,EC4N 7AF,VENDOR
"Department for Business, Energy and Industrial Strategy","Department for Business, Energy and Industrial Strategy",20/10/2020,Outsourced Programme Management,Energy Transformation and Clean Growth - Energy Efficiency and Local,WSP UK LTD,365160,8124.00,Heat Networks Programme costs-Outsourced Programme Management,RG21 4HJ,VENDOR
"Department for Business, Energy and Industrial Strategy","Department for Business, Energy and Industrial Strategy",12/10/2020,Research and Development Expenditure,Energy Transformation and Clean Growth - Energy Efficiency and Local,Risksol Consulting Ltd T/A Risk Solutions,364181,-2400.00,Heat Networks Programme costs-Research and Development Expenditure,WA2 7LT,VENDOR
"Department for Business, Energy and Industrial Strategy","Department for Business, Energy and Industrial Strategy",12/10/2020,Research and Development Expenditure,Energy Transformation and Clean Growth - Energy Efficiency and Local,Risksol Consulting Ltd T/A Risk Solutions,364181,4400.00,Heat Networks Programme costs-Research and Development Expenditure,WA2 7LT,VENDOR
